{"text_format":"2","workbook":"xlsx","n_sheets":9,"sheets":["прил 1 (2013 доходы)","прил3 (админ)","прил6","прил8","прил10","прил12","прил 16заим 2013","прил17заим2014-2015","прил18источн2013"],"not_rendered":{"charts":0,"images":0,"macros":0,"external_links":0,"defined_names":17,"comments":0,"pivot_tables":0},"unopened":[],"bounds":{"document_bytes":16777216,"sheet_cells":100000,"run_cost":"one","rows_first":2000,"rows_last":500,"rows_between":2000,"halvings":0,"cell_chars":16384,"cell_head_chars":4096},"cells_cut":0,"cells_raw":0,"read":"whole","date_system":"1900"}

{"sheet":"прил 1 (2013 доходы)","index":0,"n_rows":130,"n_cols":6,"rows_kept":130,"cut":false,"hidden":false,"merged":[[64,6,64,15],[66,6,66,11],[2,0,3,4],[5,0,6,0],[5,1,5,2],[5,3,6,3],[5,4,6,4],[5,5,6,5]]}
[]
[]
["Прогнозируемые доходы бюджета Черемховского районного муниципального образования на 2013 год  "]
[]
[{"$nulls":4},"(тыс. рублей)"]
["Наименование","Код бюджетной классификации",null,"Прогноз на 2013 год (перв)","Прогноз на 2013 год ","ОТК"]
[null,"главного администратора доходов","доходов районного бюджета"]
["НАЛОГОВЫЕ И НЕНАЛОГОВЫЕ ДОХОДЫ","000","1 00 00000 00 0000 000",{"$f":"D9+D14+D23+D27+D30+D35+D40+D47+D52+D71","v":81236.930000000008},{"$f":"E9+E14+E23+E27+E30+E35+E40+E47+E52+E71","v":81236.930000000008},{"$f":"E8-D8","v":0}]
["НАЛОГИ НА ПРИБЫЛЬ, ДОХОДЫ","182","1 01 00000 00 0000 000",{"$f":"D10+D11+D12+D13","v":50023.7},50023.7,{"$f":"E9-D9","v":0}]
["Налог на доходы физических лиц с доходов, источником которых является налоговый агент, за исключением доходов, в отношении которых исчисление и уплата налога осуществляются в соответствии со статьями 227,227¹ и 228 Налогового кодекса Российской Федерации","182","1 01 02010 01 0000 110",49835.4,49835.4,0]
["Налог на доходы физических лиц с доходов, полученных от осуществления деятельности физическими лицами,зарегистрированными в качестве индивидуальных предпринимателей,нотариусов,занимающихся частной практикой,адвокатов,учредивших адвокатские кабинеты и других лиц, занимающихся частной практикой","182","1 01 02020 01 0000 110",53.1,53.1,0]
["Налог на доходы физических лиц с доходов,  полученных физическими лицами, не являющимися налоговыми резидентами ","182","1 01 02030 01 0000 110",131.69999999999999,131.69999999999999,0]
["Налог на доходы физических лиц в виде фиксированных авансовых платежей с доходов, полученных физическими лицами, являющимися иностранными гражданами, осуществляющими трудовую деятельность по найму у физических лиц на основании патента ","182","1 01 02040 01 0000 110",3.5,3.5,0]
["НАЛОГИ НА СОВОКУПНЫЙ ДОХОД","182","1 05 00000 00 0000 000",{"$f":"D15+D21+D22","v":9179.2999999999993},{"$f":"E15+E21+E22","v":9179.2999999999993},0]
["Налог, взимаемый в связи с применением упрощенной системы налогообложения ","182","1 05 01000 00 0000 110",{"$f":"D16+D17+D18+D19","v":3770.3999999999996},{"$f":"E16+E17+E18+E19","v":3770.3999999999996},0]
["Налог, взимаемый с налогоплательщиков, выбравших в качестве объекта налогообложения  доходы","182","1 05 01010 01 0000 110",1487,1487,0]
["Налог, взимаемый с налогоплательщиков, выбравших в качестве объекта налогообложения доходы, уменьшенные на величину расходов","182","1 05 01020 01 0000 110",1540,1540,0]
["Налог, взимаемый с налогоплательщиков, выбравших в качестве объекта налогообложения доходы, уменьшенные на величину расходов (за налоговые периоды, истекшие до 1 января 2011 года)","182","1 05 01022 01 0000 110",106.2,106.2,0]
["Минимальный налог, зачисляемый в бюджеты субьектов РФ","182","1 05 01050 01 0000 110",637.20000000000005,637.20000000000005,0]
["Налог, взимаемый в связи с применением патентной системы налогообложения","182",null,0,0,0]
["Единый налог на вмененный доход для отдельных видов деятельности","182","1 05 02000 02 0000 110",5310,5310,0]
["Единый сельскохозяйственный налог ","182","1 05 03000 01 0000 110",98.9,98.9,0]
["ГОСУДАРСТВЕННАЯ ПОШЛИНА","000","1 08 00000 00 0000 000",{"$f":"D24+D25+D26","v":988},988,0]
["Государственная пошлина по делам, рассматриваемым в судах общей юрисдикции, мировыми судьями (за исключением Верховного Суда Российской Федерации)","182","1 08 03010 01 0000 110",308,308,0]
["Государственная пошлина за совершение действий, связанных с лицензированием, с проведением аттестации в случаях, если такая аттестация предусмотрена законодательством Российской Федерации, зачисляемая в бюджеты муниципальных районов","917","1 08 07084 01 1000 110",680,680,0]
["Государственная пошлина за государственную регистрацию транспортных средств и иные юридически значимые действия, связанные с изменениями и выдачей документов на транспортные средства, выдачей регистрационных знаков, приемом квалификационных экзаменов на получение права на управление транспортными средствами","000","1 08 07141 01 0000 110",null,null,0]
["ЗАДОЛЖЕННОСТЬ И ПЕРЕРАСЧЕТЫ ПО ОТМЕНЕННЫМ НАЛОГАМ, СБОРАМ И ИНЫМ ОБЯЗАТЕЛЬНЫМ ПЛАТЕЖАМ","182","1 09 00000 00 0000 000",{"$f":"D28+D29","v":1},1,0]
["Налог на имущество предприятий","182","1 09 04010 02 0000 110",0.5,0.5,0]
["Налог с продаж","182","1 09 06010 02 0000 110",0.5,0.5,0]
["ДОХОДЫ ОТ ИСПОЛЬЗОВАНИЯ ИМУЩЕСТВА, НАХОДЯЩЕГОСЯ В ГОСУДАРСТВЕННОЙ И МУНИЦИПАЛЬНОЙ СОБСТВЕННОСТИ","000","1 11 00000 00 0000 000",{"$f":"D31+D34","v":9990},9990,0]
["Доходы, получаемые в виде арендной  платы за земельные участки,государственная собственность на которые не разграничена и которые расположеныв границах поселений, а также средства от продажи права на заключение договоров аренды указанных земельных участков","000","1 11 05013 10 0000 120",{"$f":"D32+D33","v":5090},5090,0]
["Доходы, получаемые в виде арендной платы за земельные участки, государственная собственность на которые не разграничена и которые расположены в границах поселений, а также средства от продажи права на заключение договоров аренды указанных земельных участков","913","1 11 05013 10 0000 120",4340,4340,0]
["Доходы, получаемые в виде арендной  платы за земельные участки,государственная собственность на которые не разграничена и которые расположеныв границах поселений, а также средства от продажи права на заключение договоров аренды указанных земельных участков","950","1 11 05013 10 0000 120",750,750,0]
["Доходы от сдачи в аренду имущества, находящегося в оперативном управлении органов управления муниципальных районов и созданных ими учреждений (за исключением имущества муниципальных автономных учреждений)","913","1 11 05035 05 0000 120",4900,4900,0]
["ПЛАТЕЖИ ПРИ ПОЛЬЗОВАНИИ ПРИРОДНЫМИ РЕСУРСАМИ","048","1 12 00000 00 0000 000",{"$f":"D36","v":179.13},179.13,0]
["Плата за негативное воздействие на окружающую среду","048","1 12 01000 01 0000 120",{"$f":"D37+D38+D39","v":179.13},179.13,0]
["Плата за выбросы загрязняющих веществ в атмосферный воздух стационарными объектами ","048","1 12 01010 01 0000 120",94.9,94.9,0]
["Плата за выбросы загрязняющих веществ в атмосферный воздух передвижными объектами","048","1 12 01020 01 0000 120",17.93,17.93,0]
["Плата за размещение отходов производства и потребления","048","1 12 01040 01 0000 120",66.3,66.3,0]
["ДОХОДЫ ОТ ОКАЗАНИЯ ПЛАТНЫХ УСЛУГ И КОМПЕНСАЦИИ ЗАТРАТ ГОСУДАРСТВА","000","1 13 00000 00 0000 000",{"$f":"D41+D42","v":7394},7394,0]
["Прочие доходы от оказания платных услуг (работ) получателями средств бюджетов муниципальных районов","907","113 01995 05 0000 130",7070,7070,0]
["Прочие доходы от оказания платных услуг (работ) получателями средств бюджетов муниципальных районов ","904","113 01995 05 0000 130",{"$f":"D43+D44+D45+D46","v":324},324,0]
["Прочие доходы от оказания платных услуг (работ) получателями средств бюджетов муниципальных районов (МКУК МКЦ АЧРМО)","000","113 01995 05 0000 130",55,55,0]
["Прочие доходы от оказания платных услуг (работ) получателями средств бюджетов муниципальных районов (МКУК РИК МУЗЕЙ)","000","113 01995 05 0000 130",21,21,0]
["Прочие доходы от оказания платных услуг (работ) получателями средств бюджетов муниципальных районов (МКУК МБЧР)","000","113 01995 05 0000 130",26,26,0]
["Прочие доходы от оказания платных услуг (работ) получателями средств бюджетов муниципальных районов (МКОУ ДОД ДШИ)","000","113 01995 05 0000 130",222,222,0]
["ДОХОДЫ ОТ ПРОДАЖИ МАТЕРИАЛЬНЫХ И НЕМАТЕРИАЛЬНЫХ АКТИВОВ","913","1 14 00000 00 0000 000",{"$f":"D48+D50","v":2669.3},2669.3,0]
["Доходы от реализации имущества, находящегося в государственной и муниципальной собственности (за исключением имущества автономных учреждений, а также имущества государственных и муниципальных унитарных предприятий, в том числе казенных)","913","1 14 02000 00 0000 000",{"$f":"D49","v":2600},2600,0]
["Доходы от реализации иного имущества, находящегося в собственности муниципальных районов (за исключением имущества муниципальных автономных учреждений, а также имущества муниципальных унитарных предприятий, в том числе казенных), в части реализации основных средств по указанному имуществу","913","1 14 02053 05 0000 410",2600,2600,0]
["Доходы от продажи земельных участков, находящихся в  государственной и муниципальной собственности (за исключением земельных участков автономных учреждений)","913","1 14 06000 00 0000 430",{"$f":"D51","v":69.3},69.3,0]
["Доходы от продажи земельных участков, государственная собственность на которые не разграничена и которые расположены в границах поселений","913","1 14 06013 10 0000 430",69.3,69.3,0]
["ШТРАФЫ, САНКЦИИ, ВОЗМЕЩЕНИЕ УЩЕРБА","000","1 16 00000 00 0000 000",{"$f":"D53+D54+D55+D59+D63+D62","v":512.5},512.5,0]
["Денежные взыскания (штрафы) за нарушение законодательства о налогах и сборах","182","1 16 03000 01 0000 140",39,39,0]
["Денежные взыскания (штрафы) за административные правонарушения в области государственного регулирования производства и оборота этилового спирта, алкогольной и спиртосодержащей продукции","000","1 16 08000 01 0000 140",3.2,3.2,0]
["Денежные взыскания (штрафы) за нарушение законодательства о недрах, об особо охраняемых природных территориях, об охране и использовании животного мира, об экологической экспертизе, в области охраны окружающей среды, земельного законодательства","000","1 16 25000 01 0000 140",{"$f":"D57+D58+D56","v":37},37,0]
["Денежные взыскания (штрафы) за нарушение законодательства о недрах","000","1 16 25010 01 6000 140",1,1,0]
["Денежные взыскания (штрафы) за нарушение законодательства об охране и использовании животного мира","815","1 16 25030 01 6000 140",35,35,0]
["Денежные взыскания (штрафы) за нарушение земельного законодательства","081","1 16 25060 01 6000 140",1,1,0]
["Денежные взыскания (штрафы) за правонарушения в области дорожного движения","000","1 16 30000 01 0000 140",{"$f":"D60+D61","v":31.7},31.7,0]
["Денежные взыскания (штрафы) за административные правонарушения в области дорожного движения","188","1 16 30014 01 0000 140",2.7,2.7,0]
["Прочие денежные взыскания (штрафы) за административные правонарушения в области дорожного движения","188","1 16 30030 01 0000 140",29,29,0]
["Денежные взыскания (штрафы) за нарушение законодательства РФ об административных правонарушениях, предусмотренные статьей 20.25 Кодекса РФ об административных правонарушений","188","1 16 43000 01 0000 140",2.2000000000000002,2.2000000000000002,0]
["Прочие поступления от денежных взысканий (штрафов) и иных сумм в возмещение ущерба, зачисляемые в бюджеты муниципальных районов","000","1 16 90050 05 0000 140",{"$f":"D64+D65+D66+D67+D68+D69+D70","v":399.4},399.4,0]
["Прочие поступления от денежных взысканий (штрафов) и иных сумм в возмещение ущерба, зачисляемые в бюджеты муниципальных районов","081","1 16 90050 05 0000 140",15,15,0]
["Прочие поступления от денежных взысканий (штрафов) и иных сумм в возмещение ущерба, зачисляемые в бюджеты муниципальных районов","177","1 16 90050 05 0000 140",38,38,0]
["Прочие поступления от денежных взысканий (штрафов) и иных сумм в возмещение ущерба, зачисляемые в бюджеты муниципальных районов","188","1 16 90050 05 0000 140",59,59,0]
["Прочие поступления от денежных взысканий (штрафов) и иных сумм в возмещение ущерба, зачисляемые в бюджеты муниципальных районов","192","1 16 90050 05 0000 140",170,170,0]
["Прочие поступления от денежных взысканий (штрафов) и иных сумм в возмещение ущерба, зачисляемые в бюджеты муниципальных районов","415","1 16 90050 05 0000 140",60,60,0]
["Прочие поступления от денежных взысканий (штрафов) и иных сумм в возмещение ущерба, зачисляемые в бюджеты муниципальных районов","809","1 16 90050 05 0000 140",50,50,0]
["Прочие поступления от денежных взысканий (штрафов) и иных сумм в возмещение ущерба, зачисляемые в бюджеты муниципальных районов","917","1 16 90050 05 0000 140",7.4,7.4,0]
["ПРОЧИЕ НЕНАЛОГОВЫЕ ДОХОДЫ","000","1 17 00000 00 0000 000",{"$f":"D72+D73","v":300},300,0]
["Невыясненные поступления","000","1 17 01000 00 0000 180",0,0,0]
["Прочие неналоговые доходы","000","1 17 05000 00 0000 180",300,300,{"$f":"E73-D73","v":0}]
["БЕЗВОЗМЕЗДНЫЕ ПОСТУПЛЕНИЯ","000","2 00 00000 00 0000 000",{"$f":"D75+D124+D126","v":393504.89999999997},{"$f":"E75+E124+E126","v":398931.90114999999},5427.0011500000255]
["БЕЗВОЗМЕЗДНЫЕ ПОСТУПЛЕНИЯ ИЗ ДРУГИХ БЮДЖЕТОВ БЮДЖЕТНОЙ СИСТЕМЫ РФ","000","2 02 00000 00 0000 151",{"$f":"D76+D79+D95+D111","v":393504.89999999997},{"$f":"E76+E79+E95+E111","v":399119.82506999996},5614.9250699999975]
["ДОТАЦИИ БЮДЖЕТАМ МУНИЦИПАЛЬНЫХ ОБРАЗОВАНИЙ","000","2 02 01000 00 0000 151",{"$f":"D77+D78","v":124989},124989,0]
["Дотации муниципальным районам на выравнивание уровня бюджетной  обеспеченности","910","2 02 01001 05 0000 151",124989,124989,0]
["Дотации муниципальным районам на поддержку мер  по обеспечению сбалансированности  бюджетов","910","2 02 01003 05 0000 151",0,0,0]
["СУБСИДИИ БЮДЖЕТАМ МУНИЦИПАЛЬНЫХ ОБРАЗОВАНИЙ","000","2 02 02000 00 0000 151",{"$f":"D80+D81+D82+D83","v":11377.1},15206.1,3829]
["Федеральная программа \"Молодым семьям - доступное жилье на 2005-2019 годы\"","917","2 02 02051 05 0000 151",0,0,0]
["Долгосрочная целевая программа \"Энергосбережение и повышение энергетической эффективности на территории Иркутской области на 2011-2015 годы и на период до 2020 года","910","2 02 02150 05 0000 151",0,0,0]
["Областная государственная социальная программа \"Молодым семьям- доступное жилье\" на 2005-2019 годы\"","917","2 02 02008 05 0000 151",0,0,0]
["Прочие субсидии","000","2 02 02999 05 0000 151",{"$f":"D84+D85+D86+D87+D88+D89+D91+D92+D94+D93+D90","v":11377.1},{"$f":"E84+E85+E86+E87+E88+E89+E91+E92+E94+E93+E90","v":15206.1},3829]
["Субсидии на выплату заработной платы с начислениями на нее педагогическим работникам муниципальных дошкольных образовательных учреждений","907","2 02 02999 05 0000 151",2005.1,2005.1,0]
["Субсидия за счет средств долгосрочной целевой программы Иркутской области \"Повышение эффективности бюджетных расходов Иркутской области на 2011-2013 годы\"","910","2 02 02999 05 0000 151",9372,9372,0]
["Погашение кредиторской задолженности учреждений, находящихся в ведении органов местного самоуправления муниципальных образований Иркутской области, по страховым взносам на обязательное пенсионное страхование, сложившейся за период с 1 января 2002 года до 31 декабря 2009 года, и по страховым взносам на обязательное пенсионное страхование, обязательное медицинское страхование и обязательное социальное страхование на случай временной нетрудоспособности и в связи с материнством за период 2010-2011 годы, а также пеней и штрафов, начисленных на задолженность 2010-2011 годов","910","2 02 02999 05 0000 151",0,0,0]
["Погашение реструктуризированной кредиторской задолженности учреждений, находящихся в ведении органов местного самоуправления муниципальных образований Иркутской области, по страховым взносам на обязательное пенсионное страхование, сложившейся за период с 1 января 2002 года до 31 декабря 2009 года, и по страховым взносам на обязательное пенсионное страхование, обязательное медицинское страхование и обязательное социальное страхование на случай временной нетрудоспособности и в связи с материнством за период 2010-2011 годы, а также пеней и штрафов, начисленных на задолженность 2010-2011 годов","910","2 02 02999 05 0000 151",0,0,0]
["Долгосрочная целевая программа \"Социальное развитие села Иркутской области на 2011-2014 годы\"","907","2 02 02999 05 0000 151",null,null,0]
["Долгосрочная целевая программа Иркутской области \"100 модельных домов культуры Приангарью\" на 2011-2014 годы","917","2 02 02999 05 0000 151",0,0,0]
["ДЦП \"Развитие автомобильных дорог общего пользования регионального или межмуниципального значения и местного значения в Иркутской области на 2011-2015 годы \"\n","917","2 02 02999 05 0000 151",0,3829,3829]
["Долгосрочная целевая программа  Иркутской области «Организация и обеспечение отдыха и оздоровления детей в Иркутской области на 2012-2014 годы» ","907","2 02 02999 05 0000 151",0,0,0]
["Долгосрочная целевая программа поддержки и развития учреждений дошкольного образования в Иркутской области  на 2009-2014 годы» ","907","2 02 02999 05 0000 151",0,0,0]
["Долгосрочная целевая программа «Поддержка и развитие малого и среднего предпринимательства в Иркутской области» на 2011-2012 годы (за счет федерального бюджета)","917","2 02 02999 05 0000 151",0,0,0]
["Долгосрочная целевая программа «Поддержка и развитие малого и среднего предпринимательства в Иркутской области» на 2011-2012 годы (за счет областного бюджета)","917","2 02 02999 05 0000 151",0,0,0]
["СУБВЕНЦИИ БЮДЖЕТАМ МУНИЦИПАЛЬНЫХ ОБРАЗОВАНИЙ","000","2 02 03000 00 0000 151",{"$f":"D97+D98+D99+D101+D102+D103+D104+D105+D106+D107+D108+D109","v":256144.5},{"$f":"E97+E98+E99+E101+E102+E103+E104+E105+E106+E107+E108+E109","v":256144.5},0]
["Субвенции бюджетам муниципальных районов на осуществление полномочий по подготовке проведения статистических переписей","917","2 02 03002 05 0000 151",null,null,0]
["Субвенции бюджетам  муниципальных районов на составление списков кандидатов в присяжные заседатели федеральных судов общей юрисдикции в Российской Федерации","917","2 02 03007 05 0000 151",0,0,0]
["Субвенции бюджетам на ежемесячное денежное вознаграждение за классное руководство","907","2 02 03021 05 0000 151",0,0,0]
["Субвенции бюджетам муниципальных образований на предоставление гражданам субсидий на оплату жилого помещения и коммунальных услуг","918","2 02 03022 05 0000 151",7534.2,7534.2,0]
["Субвенции местным бюджетам на выполнение переданных полномочий субъектов РФ","000","2 02 03024 05 0000 151",{"$f":"D101+D102+D103+D104+D105+D106","v":10028.799999999999},{"$f":"E101+E102+E103+E104+E105+E106","v":10028.799999999999},0]
["Хранение, комплектование,  учет и использование архивных документов, относящихся к областной государственной собственности","917","2 02 03024 05 0000 151",1086,1086,0]
["Государственные    полномочия в области охраны труда","917","2 02 03024 05 0000 151",563.6,563.6,0]
["Определение персонального состава и обеспечение деятельности районных (городских), районных в городах комиссий по делам несовершеннолетних и защите их прав","917","2 02 03024 05 0000 151",1078.0999999999999,1078.0999999999999,0]
["Лицензирование розничной продажи алкогольной продукции","917","2 02 03024 05 0000 151",375.7,375.7,0]
["Определение персонального состава и обеспечение деятельности административных комиссий","917","2 02 03024 05 0000 151",563.6,563.6,0]
[" Предоставление мер социальной поддержки многодетным и малоимущим семьям","907","2 02 03024 05 0000 151",6361.8,6361.8,0]
["Субвенции бюджетам муниципальных районов на обеспечение жилыми помещениями детей-сирот, детей, оставшихся без попечения родителей, а также детей, находящихся под опекой (попечительством), не имеющих закрепленного жилого помещения","913","2 02 03026 05 0000 151",0,0,0]
["Субвенции бюджетам муниципальных районов на обеспечение жилыми помещениями детей-сирот, детей, оставшихся без попечения родителей, а также детей, находящихся под опекой (попечительством), не имеющих закрепленного жилого помещения (федер.)","913","2 02 03026 05 0000 151",0,0,0]
["Прочие субвенции","000","2 02 03999 05 0000 151",{"$f":"D110","v":238581.5},238581.5,0]
["Субвенция на обеспечение государственных гарантий прав граждан на получение общедоступного и бесплатного дошкольного, начального общего, основного общего, среднего (полного) общего образования, а также дополнительного образования в общеобразовательных учреждениях","907","2 02 03999 05 0000 151",238581.5,238581.5,0]
["ИНЫЕ МЕЖБЮДЖЕТНЫЕ ТРАНСФЕРТЫ","000","2 02 04000 00 0000 151",{"$f":"D112+D117+D118+D122","v":994.3},{"$f":"E112+E117+E118+E122","v":2780.22507},1785.92507]
["Межбюджетные трансферты, передаваемые бюджетам муниципальных районов из бюджетов поселений на осуществление части полномочий по решению вопросов местного значения в соответствии с заключенными соглашениями","000","2 02 04014 05 0000 151",{"$f":"D113+D114+D115+D116","v":0},1785.92507,1785.92507]
["Межбюджетные трансферты, передаваемые бюджетам муниципальных районов из бюджетов поселений на осуществление части полномочий по решению вопросов местного значения в соответствии с заключенными соглашениями (ФУ)","910","2 02 04014 05 0000 151",0,921.19104000000004,921.19104000000004]
["Межбюджетные трансферты, передаваемые бюджетам муниципальных районов из бюджетов поселений на осуществление части полномочий по решению вопросов местного значения в соответствии с заключенными соглашениями (ГО и ЧС)","917","2 02 04014 05 0000 151",0,460.59552000000002,460.59552000000002]
["Межбюджетные трансферты, передаваемые бюджетам муниципальных районов из бюджетов поселений на осуществление части полномочий по решению вопросов местного значения в соответствии с заключенными соглашениями (генплан)","918","2 02 04014 05 0000 151",0,30.2,30.2]
["Межбюджетные трансферты, передаваемые бюджетам муниципальных районов из бюджетов поселений на осуществление части полномочий по решению вопросов местного значения в соответствии с заключенными соглашениями (КСП )","923","2 02 04014 05 0000 151",0,373.93851000000001,373.93851000000001]
["Межбюджетные трансферты, передаваемые бюджетам муниципальных районов на комплектование книжных фондов библиотек муниципальных образований (областной бюджет)","910","2 02 04025 05 0000 151",162.69999999999999,162.69999999999999,0]
["Межбюджетные трансферты, передаваемые бюджетам муниципальных районов на комплектование книжных фондов библиотек муниципальных образований (федеральный бюджет)","910","2 02 04025 05 0000 151",303.60000000000002,303.60000000000002,0]
["Прочие межбюджетные трансферты, передаваемые бюджетам муниципальных районов","000","2 02 04999 05 0000 151",null,null,0]
["Дотации на возмещ.расходов местных бюджетов в связи с предоставлением льгот по оплате жилого помещения и коммунальных услуг педагогическим работникам, проживающим в сельской местности, рабочих поселках (пгт) и работающим в муниц.образоват.учреждениях","907","2 02 04999 05 0000 151",null,null,0]
["Межбюджетные трансферты в целях финансовой поддержки муниципальных образований Иркутской области, осуществляющих эффективное управление бюджетными средствами ","910","2 02 04999 05 0000 151",null,null,0]
["ПРОЧИЕ МЕЖБЮДЖЕТНЫЕ ТРАНСФЕРТЫ","000","2 02 04999 00 0000 151",{"$f":"D123","v":528},528,0]
["Исполнение судебных актов, вступивших в силу до 1 января 2013 года, по обеспечению жилыми помещениями детей-сирот и детей, оставшихся без попечения родителей, лиц из числа детей-сирот и детей, оставшихся без попечения родителей, не имеющих закрепленного жилого помещения","913","2 02 04999 05 0000 151",528,528,0]
["ПРОЧИЕ БЕЗВОЗМЕЗДНЫЕ ПОСТУПЛЕНИЯ","000","2 07 00000 00 0000 180",{"$f":"D125","v":0},14,14]
["Прочие безвозмездные поступления в бюджеты муниципальных районов","000","2 07 05030 05 0000 180",0,14,14]
["ВОЗВРАТ ОТСТАКОВ СУБСИДИЙ И СУБВЕНЦИЙ","000","2 19 00000 00 0000 000",{"$f":"D127","v":0},-201.92392000000001,-201.92392000000001]
["Возврат остатков субсидий и субвенций из бюджетов муниципальных районов","910","2 19 05000 05 0000 180",0,-201.92392000000001,-201.92392000000001]
["ИТОГО ДОХОДОВ","000","8 50 00000 00 0000 000",{"$f":"D74+D8","v":474741.82999999996},{"$f":"E74+E8","v":480168.83114999998},5427.0011500000255]
[]
["Начальник финансового управления",null,null,"Ю.Н. Гайдук","Ю.Н. Гайдук"]

{"sheet":"прил3 (админ)","index":1,"n_rows":88,"n_cols":4,"rows_kept":88,"cut":false,"hidden":false,"merged":[[85,2,85,3],[79,2,79,3],[80,2,80,3],[81,2,81,3],[82,2,82,3],[83,2,83,3],[84,2,84,3],[78,2,78,3],[66,2,66,3],[67,2,67,3],[68,2,68,3],[69,2,69,3],[70,2,70,3],[71,2,71,3],[72,2,72,3],[73,2,73,3],[75,2,75,3],[76,2,76,3],[77,2,77,3],[74,2,74,3],[65,2,65,3],[54,2,54,3],[55,2,55,3],[56,2,56,3],[57,2,57,3],[58,2,58,3],[59,2,59,3],[60,2,60,3],[61,2,61,3],[62,2,62,3],[63,2,63,3],[64,2,64,3],[53,2,53,3],[42,2,42,3],[43,2,43,3],[44,2,44,3],[45,2,45,3],[46,2,46,3],[47,2,47,3],[48,2,48,3],[49,2,49,3],[50,2,50,3],[51,2,51,3],[52,2,52,3],[41,2,41,3],[30,2,30,3],[31,2,31,3],[32,2,32,3],[33,2,33,3],[34,2,34,3],[35,2,35,3],[36,2,36,3],[37,2,37,3],[38,2,38,3],[39,2,39,3],[40,2,40,3],[29,2,29,3],[18,2,18,3],[19,2,19,3],[20,2,20,3],[21,2,21,3],[22,2,22,3],[23,2,23,3],[24,2,24,3],[25,2,25,3],[26,2,26,3],[27,2,27,3],[28,2,28,3],[17,2,17,3],[5,0,6,3],[7,0,7,1],[7,2,8,3],[9,2,9,3],[10,2,10,3],[11,2,11,3],[12,2,12,3],[13,2,13,3],[14,2,14,3],[15,2,15,3],[16,2,16,3]]}
[]
[]
[]
[]
[]
["Перечень главных администраторов доходов бюджета Черемховского районного муниципального образования - органов местного самоуправления Черемховского районного муниципального образования"]
[]
["Код бюджетной классификации РФ",null,"Наименование главного администратора доходов районного бюджета"]
["главного администратора доходов","доходов районного бюджета"]
[904,null,"Отдел по культуре и библиотечному обслуживанию администрации Черемховского районного муниципального образования"]
[904,"1 13 01995 05 0000 130","Прочие доходы от оказания платных услуг получателями средств бюджетов муниципальных районов и компенсации затрат бюджетов муниципальных районов"]
[904,"1 17 01050 05 0000 180","Невыясненные поступления, зачисляемые в бюджеты муниципальных районов"]
[904,"1 17 05050 05 0000 180","Прочие неналоговые доходы бюджетов муниципальных районов"]
[904,"2 02 01999 05 0000 151","Прочие дотации бюджетам муниципальных районов"]
[904,"2 02 02999 05 0000 151","Прочие субсидии бюджетам муниципальных районов"]
[904,"2 02 03999 05 0000 151","Прочие субвенции бюджетам муниципальных районов"]
[904,"2 02 04999 05 0000 151","Прочие межбюджетные трансферты, передаваемые бюджетам муниципальных районов"]
[904,"2 07 05030 05 0000 180","Прочие безвозмездные поступления в бюджеты муниципальных районов"]
[907,null,"Отдел образования администрации Черемховского районного муниципального образования"]
[907,"1 13 01995 05 0000 130","Прочие доходы от оказания платных услуг получателями средств бюджетов муниципальных районов и компенсации затрат бюджетов муниципальных районов"]
[907,"1 17 01050 05 0000 180","Невыясненные поступления, зачисляемые в бюджеты муниципальных районов"]
[907,"1 17 05050 05 0000 180","Прочие неналоговые доходы бюджетов муниципальных районов"]
[907,"2 02 01999 05 0000 151","Прочие дотации бюджетам муниципальных районов"]
[907,"2 02 02022 05 0000 151","Субсидии бюджетам муниципальных образований на внедрение инновационных образовательных программ"]
[907,"2 02 02999 05 0000 151","Прочие субсидии бюджетам муниципальных районов"]
[907,"2 02 03021 05 0000 151","Субвенции бюджетам муниципальных районов на ежемесячное денежное вознаграждение за классное руководство"]
[907,"2 02 03024 05 0000 151","Субвенции бюджетам муниципальных районов на выполнение передаваемых полномочий субъектов РФ"]
[907,"2 02 03999 05 0000 151","Прочие субвенции бюджетам муниципальных районов"]
[907,"2 02 04999 05 0000 151","Прочие межбюджетные трансферты, передаваемые бюджетам муниципальных районов"]
[907,"2 07 05030 05 0000 180","Прочие безвозмездные поступления в бюджеты муниципальных районов"]
[910,null,"Финансовое управление Администрации Черемховского районного муниципального образования"]
[910,"1 17 01050 05 0000 180","Невыясненные поступления, зачисляемые в бюджеты муниципальных районов"]
[910,"1 17 05050 05 0000 180","Прочие неналоговые доходы бюджетов муниципальных районов"]
[910,"2 02 01001 05 0000 151","Дотации бюджетам муниципальных районов на выравнивание уровня бюджетной обеспеченности"]
[910,"2 02 01003 05 0000 151","Дотации бюджетам муниципальных районов на поддержку мер по обеспечению сбалансированности бюджетов"]
[910,"2 02 01999 05 0000 151","Прочие дотации бюджетам муниципальных районов"]
[910,"2 02 02008 05 0000 151","Субсидии бюджетам муниципальных районов на обеспечение жильем молодых семей"]
[910,"2 02 02999 05 0000 151","Прочие субсидии бюджетам муниципальных районов"]
[910,"2 02 03999 05 0000 151","Прочие субвенции бюджетам муниципальных районов"]
[910,"2 02 04014 05 0000 151","Межбюджетные трансферты, передаваемые бюджетам муниципальных районов из бюджетов поселений на осуществление части полномочий по решению вопросов местного значения в соответствии с заключенными соглашениями"]
[910,"2 02 04025 05 0000 151","Межбюджетные трансферты, передаваемые бюджетам муниципальных районов на комплектование книжных фондов библиотек муниципальных образований"]
[910,"2 02 04999 05 0000 151","Прочие межбюджетные трансферты, передаваемые бюджетам муниципальных районов"]
[910,"2 07 05030 05 0000 180","Прочие безвозмездные поступления в бюджеты муниципальных районов"]
[910,"2 08 05000 05 0000 180","Перечисления из бюджетов муниципальных районов (в бюджеты муниципальных районов) для осуществления возврата (зачета) излишне уплаченных или излишне взысканных сумм налогов, сборов и иных платежей, а также сумм процентов за несвоевременное осуществление такого возврата и процентов, начисленных на излишне взысканные суммы"]
[910,"2 19 05000 05 0000 151","Возврат остатков субсидий и субвенций из бюджетов муниципальных районов"]
[913,null,"Комитет по управлению муниципальным имуществом администрации Черемховского районного муниципального образования"]
[913,"1 11 05013 10 0000 120","Доходы, получаемые в виде арендной платы за земельные участки, государственная собственность на которые не разграничена и которые расположены в границах поселений, а также средства от продажи права на заключение договоров аренды указанных земельных участков"]
[913,"1 11 05035 05 0000 120","Доходы от сдачи в аренду имущества, находящегося в оперативном управлении органов управления муниципальных районов и созданных ими учреждений (за исключением имущества муниципальных автономных учреждений)"]
[913,"1 14 02052 05 0000 410","Доходы от реализации имущества, находящегося в оперативном управлении учреждений, находящихся в ведении органов управления муниципальных районов (за исключением имущества муниципальных автономных учреждений), в части реализации основных средств по указанному имуществу"]
[913,"1 14 02052 05 0000 440","Доходы от реализации имущества, находящегося в оперативном управлении учреждений, находящихся в ведении органов управления муниципальных районов (за исключением имущества муниципальных автономных учреждений), в части реализации материальных запасов по указанному имуществу"]
[913,"1 14 02053 05 0000 410","Доходы от реализации иного имущества, находящегося в собственности муниципальных районов (за исключением имущества муниципальных автономных учреждений, а также имущества муниципальных унитарных предприятий, в том числе казенных), в части реализации основных средств по указанному имуществу"]
[913,"1 14 02053 05 0000 440","Доходы от реализации иного имущества, находящегося в собственности муниципальных районов (за исключением имущества муниципальных автономных учреждений, а также имущества муниципальных унитарных предприятий, в том числе казенных), в части реализации материальных запасов по указанному имуществу"]
[913,"1 14 06014 10 0000 430","Доходы от продажи земельных участков, государственная собственность на которые не разграничена и которые расположены в границах поселений"]
[913,"1 14 06025 05 0000 430","Доходы от продажи земельных участков, находящихся в собственности муниципальных районов (за исключением земельных участков муниципальных автономных учреждений)"]
[913,"1 17 01050 05 0000 180","Невыясненные поступления, зачисляемые в бюджеты муниципальных районов"]
[913,"1 17 05050 05 0000 180","Прочие неналоговые доходы бюджетов муниципальных районов"]
[913,"2 02 03026 05 0000 151","Субвенции бюджетам муниципальных районов на обеспечение жилыми помещениями детей-сирот, детей, оставшихся без попечения родителей, а также детей, находящихся под опекой (попечительством), не имеющих закрепленного жилого помещения"]
[913,"2 02 04999 05 0000 151","Прочие межбюджетные трансферты, передаваемые бюджетам муниципальных районов"]
[917,null,"Администрация Черемховского районного муниципального образования"]
[917,"1 08 07084 01 1000 110","Государственная пошлина за совершение действий, связанных с лицензированием, с проведением аттестации в случаях, если такая аттестация предусмотрена законодательством Российской Федерации, зачисляемая в бюджеты муниципальных районов"]
[917,"1 16 90050 05 0000 140","Прочие поступления от денежных взысканий (штрафов) и иных сумм в возмещение ущерба, зачисляемые в бюджеты муниципальных районов"]
[917,"1 17 01050 05 0000 180","Невыясненные поступления, зачисляемые в бюджеты муниципальных районов"]
[917,"1 17 05050 05 0000 180","Прочие неналоговые доходы бюджетов муниципальных районов"]
[917,"2 02 01999 05 0000 151","Прочие дотации бюджетам муниципальных районов"]
[917,"2 02 02008 05 0000 151","Субсидии бюджетам муниципальных районов на обеспечение жильем молодых семей"]
[917,"2 02 02105 05 0000 151","Субсидии бюджетам муниципальных районов на проведение противоаварийных мероприятий в зданиях государственных и муниципальных общеобразовательных учреждений"]
[917,"2 02 02999 05 0000 151","Прочие субсидии бюджетам муниципальных районов"]
[917,"2 02 03002 05 0000 151","Субвенции бюджетам муниципальных районов на осуществление полномочий по подготовке проведения статистических переписей"]
["917","2 02 03007 05 0000 151","Субвенции бюджетам  муниципальных районов на составление списков кандидатов в присяжные заседатели федеральных судов общей юрисдикции в Российской Федерации"]
[917,"2 02 03024 05 0000 151","Субвенции бюджетам муниципальных районов на выполнение передаваемых полномочий субъектов РФ"]
[917,"2 02 03999 05 0000 151","Прочие субвенции бюджетам муниципальных районов"]
[917,"2 02 04014 05 0000 151","Межбюджетные трансферты, передаваемые бюджетам муниципальных районов из бюджетов поселений на осуществление части полномочий по решению вопросов местного значения в соответствии с заключенными соглашениями"]
[917,"2 02 04999 05 0000 151","Прочие межбюджетные трансферты, передаваемые бюджетам муниципальных районов"]
[917,"2 07 05030 05 0000 180","Прочие безвозмездные поступления в бюджеты муниципальных районов"]
[917,"2 18 05010 05 0000 180","Доходы бюджетов муниципальных районов от возврата бюджетными учреждениями остатков субсидий прошлых лет"]
[918,null,"Управление жилищно-коммунального хозяйства, строительства, транспорта, связи и экологии администрации Черемховского районного муниципального образования"]
[918,"1 16 90050 05 0000 140","Прочие поступления от денежных взысканий (штрафов) и иных сумм в возмещение ущерба, зачисляемые в бюджеты муниципальных районов"]
[918,"1 17 01050 05 0000 180","Невыясненные поступления, зачисляемые в бюджеты муниципальных районов"]
[918,"1 17 05050 05 0000 180","Прочие неналоговые доходы бюджетов муниципальных районов"]
["918","2 02 03022 05 0000 151","Субвенции бюджетам муниципальных образований на предоставление гражданам субсидий на оплату жилого помещения и коммунальных услуг"]
["918","2 02 04014 05 0000 151","Межбюджетные трансферты, передаваемые бюджетам муниципальных районов из бюджетов поселений на осуществление части полномочий по решению вопросов местного значения в соответствии с заключенными соглашениями "]
[918,"2 07 05030 05 0000 180","Прочие безвозмездные поступления в бюджеты муниципальных районов"]
[923,null,"Контрольно-счетная палата Черемховского районного муниципального образования"]
[923,"1 17 01050 05 0000 180","Невыясненные поступления, зачисляемые в бюджеты муниципальных районов"]
[923,"1 17 05050 05 0000 180","Прочие неналоговые доходы бюджетов муниципальных районов"]
["923","2 02 04014 05 0000 151","Межбюджетные трансферты, передаваемые бюджетам муниципальных районов из бюджетов поселений на осуществление части полномочий по решению вопросов местного значения в соответствии с заключенными соглашениями "]
[]
["Начальник финансового управления",null,null,"Ю.Н. Гайдук"]

{"sheet":"прил6","index":2,"n_rows":259,"n_cols":6,"rows_kept":259,"cut":false,"hidden":false,"merged":[[8,0,8,5],[258,3,258,5],[11,0,12,0],[11,1,11,4],[11,5,12,5],[256,0,256,4]]}
{"$rows_empty":8}
["Распределение  бюджетных ассигнований   по разделам, подразделам, целевым статьям и видам расходов классификации расходов бюджетов на  2013 год"]
[]
[]
["Наименование показателя","Код",null,null,null,"Сумма, тыс. руб. "]
[null,"раздела","подраздела","целевой статьи","вида расходов"]
[1,2,3,4,5,6]
["ОБЩЕГОСУДАРСТВЕННЫЕ ВОПРОСЫ",1,0,0,0,69294.8]
["Функционирование высшего должностного лица субъекта Российской Федерации и муниципального образования",1,2,0,0,2412]
["Руководство и управление в сфере установленных функций органов государственной власти субъектов Российской Федерации  и органов местного самоуправления",1,2,20000,0,2412]
["Глава муниципального образования",1,2,20300,0,2412]
["Выполнение функций органами местного самоуправления",1,2,20300,"500",2412]
["Функционирование законодательных (представительных) органов государственной власти и представительных органов муниципальных образований",1,3,0,0,1206.0999999999999]
["Руководство и управление в сфере установленных функций органов государственной власти субъектов Российской Федерации  и органов местного самоуправления",1,3,20000,0,1206.0999999999999]
["Центральный аппарат",1,3,20400,0,372.1]
["Выполнение функций органами местного самоуправления",1,3,20400,"500",372.1]
["Председатель представительного органа муниципального образования",1,3,21100,0,834]
["Выполнение функций органами местного самоуправления",1,3,21100,"500",834]
["Функционирование Правительства Российской Федерации, высших исполнительных органов государственной власти субъектов Российской Федерации, местных администраций",1,4,0,0,25663.4]
["Руководство и управление в сфере установленных функций органов государственной власти субъектов Российской Федерации  и органов местного самоуправления",1,4,20000,0,25663.4]
["Центральный аппарат",1,4,20400,0,25663.4]
["Выполнение функций органами местного самоуправления",1,4,20400,"500",25663.4]
["Обеспечение деятельности финансовых, налоговых и таможенных органов и органов финансового (финансово-бюджетного) надзора",1,6,0,0,11159.1]
["Руководство и управление в сфере установленных функций органов государственной власти субъектов Российской Федерации  и органов местного самоуправления",1,6,20000,0,10959.1]
["Центральный аппарат",1,6,20400,0,9876.7000000000007]
["Выполнение функций органами местного самоуправления",1,6,20400,"500",9876.7000000000007]
["Руководитель контрольно-счетной палаты муниципального образования и его заместители",1,6,22500,0,1082.4000000000001]
["Выполнение функций органами местного самоуправления",1,6,22500,"500",1082.4000000000001]
["Целевые программы муниципальных образований",1,6,7950000,0,200]
["Долгосрочная целевая программа Черемховского районного муниципального образования \"Повышение эффективности бюджетных расходов Черемховского районного муниципального образования на 2012-2013 годы\"",1,6,7950200,0,200]
["Выполнение функций органами местного самоуправления",1,6,7950200,"500",200]
["Резервные фонды",1,11,0,0,300]
["Резервные фонды",1,11,700000,0,300]
["Резервные фонды местных администраций",1,11,700500,0,300]
["Выполнение функций органами местного самоуправления",1,11,700500,"500",300]
["Другие общегосударственные вопросы",1,13,0,0,28554.2]
["Руководство и управление в сфере установленных функций органов государственной власти субъектов Российской Федерации  и органов местного самоуправления",1,13,20000,0,20045.7]
["Центральный аппарат",1,13,20400,0,2932.3]
["Выполнение функций органами местного самоуправления",1,13,20400,"500",2932.3]
["Осуществление областных государственных полномочий по хранению, комплектованию, учету и использованию архивных документов, относящихся к государственной собственности Иркутской области",1,13,24000,0,1086]
["Выполнение функций органами местного самоуправления",1,13,24000,"500",1086]
["Осуществление областных государственных полномочий по определению персонального состава и обеспечению деятельности административных комиссий",1,13,24300,0,563.6]
["Выполнение функций органами местного самоуправления",1,13,24300,"500",563.6]
["Осуществление отдельных государственных полномочий в области производства и оборота этилового спирта, алкогольной и спиртосодержащей продукции",1,13,24400,0,375.7]
["Выполнение функций органами местного самоуправления",1,13,24400,"500",375.7]
["Осуществление отдельных областных государственных полномочий в области охраны труда",1,13,24500,0,563.6]
["Выполнение функций органами местного самоуправления",1,13,24500,"500",563.6]
["Обеспечение деятельности подведомственных учреждений",1,13,29900,0,14524.5]
["Выполнение функций казенными учреждениями",1,13,29900,"001",13624.5]
["Субсидии бюджетным учреждениям на финансовое обеспечение муниципального задания на оказание муниципальных услуг (выполнение работ)",1,13,29900,"611",900]
["Реализация государственных функций, связанных с общегосударственным управлением",1,13,920000,0,1353.5]
["Выполнение других обязательств государства",1,13,920300,0,1353.5]
["Выполнение функций органами местного самоуправления",1,13,920300,"500",1353.5]
["Учреждения по обеспечению хозяйственного обслуживания",1,13,930000,0,6500]
["Субсидии бюджетным учреждениям на финансовое обеспечение муниципального задания на оказание муниципальных услуг (выполнение работ)",1,13,930000,"611",6500]
["Целевые программы муниципальных образований",1,13,7950000,0,655]
["Долгосрочная целевая программа \"Улучшение условий и охраны труда в Черемховском районе на 2011-2013гг.\"",1,13,7951400,0,15]
["Выполнение функций органами местного самоуправления",1,13,7951400,"500",15]
["Долгосрочная целевая программа \"Инвентаризация муниципальных объектов недвижимости Черемховского районного муниципального образования на 2012-2014 годы\"",1,13,7951900,0,500]
["Выполнение функций органами местного самоуправления",1,13,7951900,"500",500]
["Комплексная программа \"Профилактика правонарушений в Черемховском районном муниципальном образовании на 2013-2016 годы\"",1,13,7952600,0,40]
["Выполнение функций органами местного самоуправления",1,13,7952600,"500",40]
["Долгосрочная целевая программа \"Поддержка молодых педагогов на территории Черемховского районного муниципального образования\" на 2012-2013 годы",1,13,7952700,0,100]
["Выполнение функций органами местного самоуправления",1,13,7952700,"500",100]
["НАЦИОНАЛЬНАЯ ЭКОНОМИКА",4,0,0,0,5130.3]
["Дорожное хозяйство(дорожные фонды)",4,9,0,0,4500.1000000000004]
["Региональные целевые программы",4,9,5220000,0,3829]
["Долгосрочная целевая программа \"Развитие автомобильных дорог общего пользования регионального или межмуниципального значения и местного значения в Иркутской области на 2011 - 2014 годы\"",4,9,5224700,0,3829]
["Выполнение функций органами местного самоуправления",4,9,5224700,"500",3829]
["Целевые программы муниципальных образований",4,9,7950000,0,671.1]
["Долгосрочная целевая программа \"Инвентаризация муниципальных объектов недвижимости Черемховского районного муниципального образования на 2012-2014 годы\"",4,9,7951900,0,468.6]
["Выполнение функций органами местного самоуправления",4,9,7951900,"500",468.6]
["Долгосрочная целевая программа \"Развитие автомобильных дорог Черемховского районного муниципального образования на 2013-2015 годы\"",4,9,7952300,0,202.5]
["Выполнение функций органами местного самоуправления",4,9,7952300,"500",202.5]
["Другие вопросы в области национальной экономики",4,12,0,0,630.20000000000005]
["Мероприятия в области строительства, архитектуры и градостроительства",4,12,3380000,0,30.2]
["Подготовка проектов правил землепользования и застройки муниципальных образований Черемховского районного муниципального образования",4,12,3380200,0,30.2]
["Выполнение функций органами местного самоуправления",4,12,3380200,"500",30.2]
["Целевые программы муниципальных образований",4,12,7950000,0,600]
["Долгосрочная целевая программа \"Инвентаризация муниципальных объектов недвижимости Черемховского районного муниципального образования на 2012-2014 годы\"",4,12,7951900,0,500]
["Выполнение функций органами местного самоуправления",4,12,7951900,"500",500]
["Долгосрочная целевая программа \"Поддержка и развитие малого и среднего предпринимательства в Черемховском районе\" на 2013-2014 годы",4,12,7952200,0,100]
["Выполнение функций органами местного самоуправления",4,12,7952200,"500",100]
["ЖИЛИЩНО-КОММУНАЛЬНОЕ ХОЗЯЙСТВО",5,0,0,0,6689.8]
["Жилищное хозяйство",5,1,0,0,1383.8]
["Поддержка жилищного хозяйства",5,1,3500000,0,1383.8]
["Мероприятия в области жилищного хозяйства",5,1,3500300,0,1383.8]
["Выполнение функций органами местного самоуправления",5,1,3500300,"500",1383.8]
["Другие вопросы в области жилищно-коммунального хозяйства",5,5,0,0,5306]
["Руководство и управление в сфере установленных функций органов государственной власти субъектов Российской Федерации  и органов местного самоуправления",5,5,20000,0,5306]
["Центральный аппарат",5,5,20400,0,5306]
["Выполнение функций органами местного самоуправления",5,5,20400,"500",5306]
["ОБРАЗОВАНИЕ",7,0,0,0,374534.40000000002]
["Дошкольное образование",7,1,0,0,73491.600000000006]
["Детские дошкольные учреждения",7,1,4200000,0,64964.1]
["Обеспечение деятельности подведомственных учреждений",7,1,4209900,0,64964.1]
["Выполнение функций казенными учреждениями",7,1,4209900,"001",64964.1]
["Региональные целевые программы",7,1,5220000,0,3027.5]
["Областная государственная целевая программа поддержки и развития учреждений дошкольного образования в Иркутской области на 2009-2014 годы",7,1,5223700,0,3027.5]
["Выполнение функций казенными учреждениями",7,1,5223700,"001",3027.5]
["Выплата заработной платы с начислениями на нее педагогическим работникам муниципальных дошкольных образовательных учреждений и муниципальных учреждений дополнительного образования",7,1,5890000,0,1465]
["Выполнение функций казенными учреждениями",7,1,5890000,"001",1465]
["Целевые программы муниципальных образований",7,1,7950000,0,4035]
["Долгосрочная целевая программа Черемховского районного муниципального образования \"Повышение эффективности бюджетных расходов Черемховского районного муниципального образования на 2012-2013 годы\"",7,1,7950200,0,2011]
["Выполнение функций казенными учреждениями",7,1,7950200,"001",2011]
["Долгосрочная целевая программа \"Безопасность образовательных учреждений на 2010-2014 гг.\"",7,1,7951000,0,572]
["Мероприятия по обеспечению пожарной безопасности",7,1,7951000,"450",572]
["Долгосрочная целевая программа энергосбережения и повышения энергетической эффективности Черемховского районного муниципального образования на 2010-2015 годы",7,1,7951100,0,0]
["Мероприятия по повышению энергетической эффективности",7,1,7951100,"451",0]
["Долгосрочная целевая программа \"Развитие дошкольного образования на 2011-2014 гг.\"",7,1,7951700,0,1102]
["Мероприятия в сфере образования",7,1,7951700,"022",1102]
["Долгосрочная целевая программа \"Совершенствование дошкольного образования Черемховского района на 2011-2014 гг.\"",7,1,7951800,0,350]
["Мероприятия в сфере образования",7,1,7951800,"022",350]
["Общее образование",7,2,0,0,292981]
["Руководство и управление в сфере установленных функций органов государственной власти субъектов Российской Федерации  и органов местного самоуправления",7,2,20000,0,238581.8]
["Обеспечение государственных гарантий прав граждан на получение общедоступного и бесплатного дошкольного, начального общего, основного общего, среднего (полного) общего образования, а также дополнительного образования в общеобразовательных учреждениях",7,2,25000,0,238581.8]
["Выполнение функций казенными учреждениями",7,2,25000,"001",238581.8]
["Школы - детские сады, школы начальные, неполные средние и средние",7,2,4210000,0,18815]
["Обеспечение деятельности подведомственных учреждений",7,2,4219900,0,18815]
["Выполнение функций казенными учреждениями",7,2,4219900,"001",18815]
["Учреждения по внешкольной работе с детьми",7,2,4230000,0,25853.4]
["Обеспечение деятельности подведомственных учреждений",7,2,4239900,0,25853.4]
["Выполнение функций казенными учреждениями",7,2,4239900,"001",25853.4]
["Выплата заработной платы с начислениями на нее педагогическим работникам муниципальных дошкольных образовательных учреждений и муниципальных учреждений дополнительного образования",7,2,5890000,0,540.1]
["Выполнение функций казенными учреждениями",7,2,5890000,"001",540.1]
["Целевые программы муниципальных образований",7,2,7950000,0,9190.7000000000007]
["Долгосрочная целевая программа Черемховского районного муниципального образования \"Повышение эффективности бюджетных расходов Черемховского районного муниципального образования на 2012-2013 годы\"",7,2,7950200,0,5469.9]
["Выполнение функций казенными учреждениями",7,2,7950200,"001",5469.9]
["Долгосрочная целевая программа \"Безопасность образовательных учреждений на 2010-2014 гг.\"",7,2,7951000,0,1128]
["Мероприятия по обеспечению пожарной безопасности",7,2,7951000,"450",1128]
["Долгосрочная целевая программа энергосбережения и повышения энергетической эффективности Черемховского районного муниципального образования на 2010-2015 годы",7,2,7951100,0,600]
["Мероприятия по повышению энергетической эффективности",7,2,7951100,"451",600]
["Долгосрочная целевая программа \"Ветхие школы Черемховского района\" на 2011-2013 гг.",7,2,7951500,0,900]
["Мероприятия в сфере образования",7,2,7951500,"022",900]
["Долгосрочная целевая программа \"Совершенствование организации питания в образовательных учреждениях Черемховского района на 2011-2013гг.\"",7,2,7951600,0,1000]
["Мероприятия в сфере образования",7,2,7951600,"022",1000]
["Долгосрочная целевая программа \"Развитие культуры в Черемховском районном муниципальном образовании на период 2012-2016 гг.\"",7,2,7952000,0,92.8]
["Мероприятия по поддержке и развитию культуры, искусства, кинематографии",7,2,7952000,"023",92.8]
["Профессиональная подготовка, переподготовка и повышение квалификации",7,5,0,0,205.5]
["Мероприятия по переподготовке и повышению квалификации",7,5,4340000,0,205.5]
["Выполнение функций казенными учреждениями",7,5,4340000,"001",108.1]
["Выполнение функций органами местного самоуправления",7,5,4340000,"500",97.4]
["Молодежная политика и оздоровление детей",7,7,0,0,222]
["Организационно-воспитательная работа с молодежью",7,7,4310000,0,46]
["Проведение мероприятий для детей и молодежи",7,7,4310100,0,46]
["Проведение мероприятия для детей и молодежи",7,7,4310100,"447",46]
["Мероприятия по проведению оздоровительной кампании детей",7,7,4320000,0,126]
["Оплата стоимости набора продуктов питания для детей в организованных органами местного самоуправления оздоровительных лагерях с дневным пребыванием детей за счет средств областного бюджета",7,7,4320300,0,126]
["Оплата стоимости набора продуктов питания для детей в организованных органами местного самоуправления оздоровительных лагерях с дневным пребыванием детей за счет средств местного бюджета ",7,7,4320302,0,126]
["Выполнение функций казенными учреждениями",7,7,4320302,"001",126]
["Целевые программы муниципальных образований",7,7,7950000,0,50]
["Долгосрочная целевая программа \"Комплексные меры профилактики злоупотребления наркотическими средствами и психотропными веществами в Черемховском районном муниципальном образовании на 2011-2013 гг.\"",7,7,7951300,0,10]
["Выполнение функций органами местного самоуправления",7,7,7951300,"500",10]
["Долгосрочная целевая программа \"Молодежная политика в Черемховском районном муниципальном образовании\" на 2013-2015 гг.",7,7,7952500,0,40]
["Проведение мероприятия для детей и молодежи",7,7,7952500,"447",40]
["Другие вопросы в области образования",7,9,0,0,7634.3]
["Руководство и управление в сфере установленных функций органов государственной власти субъектов Российской Федерации  и органов местного самоуправления",7,9,20000,0,2634.3]
["Центральный аппарат",7,9,20400,0,2634.3]
["Выполнение функций органами местного самоуправления",7,9,20400,"500",2634.3]
["Учебно-методические кабинеты, централизованные бухгалтерии, группы хозяйственного обслуживания, учебные фильмотеки, межшкольные учебно-производственные комбинаты, логопедические пункты",7,9,4520000,0,5000]
["Субсидии бюджетным учреждениям на финансовое обеспечение муниципального задания на оказание муниципальных услуг (выполнение работ)",7,9,4520000,"611",5000]
["КУЛЬТУРА И КИНЕМАТОГРАФИЯ",8,0,0,0,16604.7]
["Культура",8,1,0,0,15413]
["Учреждения культуры и мероприятия в сфере культуры и кинематографии",8,1,4400000,0,5431.2]
["Комплектование книжных фондов библиотек муниципальных образований и государственных библиотек городов Москвы и Санкт-Петербурга",8,1,4400200,0,466.3]
["Комплектование книжных фондов библиотек муниципальных образований и государственных библиотек городов Москвы и Санкт-Петербурга за счет средств федерального бюджета",8,1,4400201,0,303.60000000000002]
["Выполнение функций казенными учреждениями",8,1,4400201,"001",303.60000000000002]
["Комплектование книжных фондов библиотек муниципальных образований и государственных библиотек городов Москвы и Санкт-Петербурга за счет областного бюджета",8,1,4400202,0,162.69999999999999]
["Выполнение функций казенными учреждениями",8,1,4400202,"001",162.69999999999999]
["Обеспечение деятельности подведомственных учреждений",8,1,4409900,0,4964.8999999999996]
["Выполнение функций казенными учреждениями",8,1,4409900,"001",4964.8999999999996]
["Музеи и постоянные выставки",8,1,4410000,0,1130.4000000000001]
["Обеспечение деятельности подведомственных учреждений",8,1,4419900,0,1130.4000000000001]
["Выполнение функций казенными учреждениями",8,1,4419900,"001",1130.4000000000001]
["Библиотеки",8,1,4420000,0,7330.4]
["Обеспечение деятельности подведомственных учреждений",8,1,4429900,0,7330.4]
["Выполнение функций казенными учреждениями",8,1,4429900,"001",7330.4]
["Целевые программы муниципальных образований",8,1,7950000,0,1521]
["Долгосрочная целевая программа Черемховского районного муниципального образования \"Повышение эффективности бюджетных расходов Черемховского районного муниципального образования на 2012-2013 годы\"",8,1,7950200,0,308]
["Выполнение функций казенными учреждениями",8,1,7950200,"001",308]
["Долгосрочная целевая программа энергосбережения и повышения энергетической эффективности Черемховского районного муниципального образования на 2010-2015 годы",8,1,7951100,0,282]
["Мероприятия по повышению энергетической эффективности",8,1,7951100,"451",282]
["Долгосрочная целевая программа \"Развитие культуры в Черемховском районном муниципальном образовании на период 2012-2016 гг.\"",8,1,7952000,0,931]
["Мероприятия по поддержке и развитию культуры, искусства, кинематографии",8,1,7952000,"023",931]
["Другие вопросы в области культуры, кинематографии",8,4,0,0,1191.7]
["Руководство и управление в сфере установленных функций органов государственной власти субъектов Российской Федерации  и органов местного самоуправления",8,4,20000,0,1191.7]
["Центральный аппарат",8,4,20400,0,1191.7]
["Выполнение функций органами местного самоуправления",8,4,20400,"500",1191.7]
["Социальная политика",10,0,0,0,19800.599999999999]
["Пенсионное обеспечение",10,1,0,0,2980]
["Доплаты к пенсиям, дополнительное пенсионное обеспечение ",10,1,4910000,0,2980]
["Доплаты к пенсиям государственных служащих субъектов Российской Федерации и муниципальных служащих ",10,1,4910100,0,2980]
["Социальные выплаты",10,1,4910100,"005",2980]
["Социальное обеспечение населения",10,3,0,0,15114.5]
["Руководство и управление в сфере установленных функций органов государственной власти субъектов Российской Федерации  и органов местного самоуправления",10,3,20000,0,13896]
["Осуществление отдельных областных государственных полномочий по предоставлению мер социальной поддержки многодетным и малоимущим семьям",10,3,24600,0,6361.8]
["Социальные выплаты",10,3,24600,"005",6361.8]
["Осуществление областных государственных полномочий по предоставлению гражданам субсидий на оплату жилых помещений и коммунальных услуг",10,3,24700,0,7534.2]
["Содержание и обеспечение деятельности муниципальных служащих, осуществляющих областные государственные полномочия по предоставлению гражданам субсидий на оплату жилых помещений и коммунальных услуг",10,3,24701,0,771.9]
["Выполнение функций органами местного самоуправления",10,3,24701,"500",771.9]
["Предоставление гражданам субсидий на оплату жилых помещений и коммунальных услуг",10,3,24702,0,6762.3]
["Социальные выплаты",10,3,24702,"005",6762.3]
["Реализация государственных функций в области социальной политики",10,3,5140000,0,854]
["Мероприятия в области социальной политики",10,3,5140100,0,854]
["Социальные выплаты",10,3,5140100,"005",854]
["Региональные целевые программы",10,3,5220000,0,4.5]
["Областная государственная социальная программа \"Молодым семьям - доступное жилье\" на 2005-2019 годы",10,3,5222200,0,4.5]
["Социальные выплаты",10,3,5222200,"005",4.5]
["Целевые программы муниципальных образований",10,3,7950000,0,360]
["Долгосрочная целевая программа \"Молодым семьям-доступное жилье\" на 2012-2019 гг.",10,3,7952100,0,360]
["Социальные выплаты",10,3,7952100,"005",360]
["Охрана семьи и детства",10,4,0,0,528]
["Исполнение судебных актов, вступивших в силу до 1 января 2013 года, по обеспечению жилыми помещениями детей-сирот и детей, оставшихся без попечения родителей, лиц из числа детей-сирот и детей, оставшихся без попечения родителей, не имеющих закрепленного жилого помещения",10,4,6040000,0,528]
["Бюджетные инвестиции",10,4,6040000,"003",528]
["Другие вопросы в области социальной политики",10,6,0,0,1178.0999999999999]
["Руководство и управление в сфере установленных функций органов государственной власти субъектов Российской Федерации  и органов местного самоуправления",10,6,20000,0,1078.0999999999999]
["Осуществление областных государственных полномочий по определению персонального состава и обеспечению деятельности районных (городских), районных в городах комиссий по делам несовершеннолетних и защите их прав",10,6,24100,0,1078.0999999999999]
["Выполнение функций органами местного самоуправления",10,6,24100,"500",1078.0999999999999]
["Целевые программы муниципальных образований",10,6,7950000,0,100]
["Муниципальная целевая программа \"Поддержка, проводимых мероприятий, посвященных Дням воинской славы, памятным датам России и работе с ветеранами и инвалидами в черемховском районе на 2013-2015 гг.\"",10,6,7952400,0,100]
["Выполнение функций органами местного самоуправления",10,6,7952400,"500",100]
["ФИЗИЧЕСКАЯ КУЛЬТУРА И СПОРТ",11,0,0,0,182.4]
["Физическая культура",11,1,0,0,182.4]
["Физкультурно-оздоровительная работа и спортивные мероприятия",11,1,5120000,0,82.4]
["Мероприятия в области спорта, физической культуры и туризма",11,1,5129700,0,82.4]
["Выполнение функций органами местного самоуправления",11,1,5129700,"500",82.4]
["Целевые программы муниципальных образований",11,1,7950000,0,100]
["Долгосрочная целевая программа \"Развитие физической культуры, спорта и туризма в Черемховском районном муниципальном образовании на 2011-2013 гг.\"",11,1,7951200,0,100]
["Выполнение функций органами местного самоуправления",11,1,7951200,"500",100]
["СРЕДСТВА МАССОВОЙ ИНФОРМАЦИИ",12,0,0,0,2000]
["Периодическая печать и издательства",12,2,0,0,2000]
["Периодические издания, учрежденные органами законодательной и исполнительной власти",12,2,4570000,0,2000]
["Государственная поддержка в сфере культуры, кинематографии и средств массовой информации",12,2,4578500,0,2000]
["Субсидии юридическим лицам",12,2,4578500,"006",2000]
["ОБСЛУЖИВАНИЕ ГОСУДАРСТВЕННОГО И МУНИЦИПАЛЬНОГО ДОЛГА",13,0,0,0,60]
["Обслуживание внутреннего государственного и муниципального долга",13,1,0,0,60]
["Процентные платежи по долговым обязательствам",13,1,650000,0,60]
["Процентные платежи по муниципальному долгу",13,1,650300,0,60]
["Прочие расходы",13,1,650300,"013",60]
["МЕЖБЮДЖЕТНЫЕ ТРАНСФЕРТЫ ОБЩЕГО ХАРАКТЕРА БЮДЖЕТАМ СУБЪЕКТОВ РОССИЙСКОЙ ФЕДЕРАЦИИ И МУНИЦИПАЛЬНЫХ ОБРАЗОВАНИЙ ",14,0,0,0,5375]
["Дотации на выравнивание бюджетной обеспеченности субъектов Российской Федерации и муниципальных образований",14,1,0,0,3500]
["Выравнивание бюджетной обеспечености",14,1,5160000,0,3500]
["Выравнивание бюджетной обеспеченности",14,1,5160100,0,3500]
["Выравнивание бюджетной обеспеченности поселений из районного фонда финансовой поддержки",14,1,5160130,0,3500]
["Фонд финансовой поддержки",14,1,5160130,"008",3500]
["Прочие межбюджетные трансферты общего характера бюджетам субъектов Российской Федерации и муниципальных образований ",14,3,0,0,1875]
["Целевые программы муниципальных образований",14,3,7950000,0,1875]
["Долгосрочная целевая программа Черемховского районного муниципального образования \"Повышение эффективности бюджетных расходов Черемховского районного муниципального образования на 2012-2013 годы\"",14,3,7950200,0,1875]
["Иные межбюджетные трансферты",14,3,7950200,"017",1875]
["ИТОГО",{"$nulls":4},499672]
[]
["Начальник финансового управления",null,null,"Ю.Н. Гайдук"]

{"sheet":"прил8","index":3,"n_rows":259,"n_cols":6,"rows_kept":259,"cut":false,"hidden":false,"merged":[[256,0,256,4],[258,2,258,5],[11,1,12,1],[11,2,12,2],[8,0,8,5],[11,0,12,0],[11,5,12,5]]}
{"$rows_empty":8}
["Распределение бюджетных ассигнований  по  разделам и подразделам классификации расходов бюджетов Черемховского районного муниципального образования на 2013 год"]
[]
[]
["Наименование показателя","раздел","подраздел",null,null,"Сумма, тыс. руб. "]
[null,null,null,"целевой статьи","вида расходов"]
[1,2,3,4,5,4]
["ОБЩЕГОСУДАРСТВЕННЫЕ ВОПРОСЫ",1,0,0,0,69294.8]
["Функционирование высшего должностного лица субъекта Российской Федерации и муниципального образования",1,2,0,0,2412]
["Руководство и управление в сфере установленных функций органов государственной власти субъектов Российской Федерации  и органов местного самоуправления",1,2,20000,0,2412]
["Глава муниципального образования",1,2,20300,0,2412]
["Выполнение функций органами местного самоуправления",1,2,20300,"500",2412]
["Функционирование законодательных (представительных) органов государственной власти и представительных органов муниципальных образований",1,3,0,0,1206.0999999999999]
["Руководство и управление в сфере установленных функций органов государственной власти субъектов Российской Федерации  и органов местного самоуправления",1,3,20000,0,1206.0999999999999]
["Центральный аппарат",1,3,20400,0,372.1]
["Выполнение функций органами местного самоуправления",1,3,20400,"500",372.1]
["Председатель представительного органа муниципального образования",1,3,21100,0,834]
["Выполнение функций органами местного самоуправления",1,3,21100,"500",834]
["Функционирование Правительства Российской Федерации, высших исполнительных органов государственной власти субъектов Российской Федерации, местных администраций",1,4,0,0,25663.4]
["Руководство и управление в сфере установленных функций органов государственной власти субъектов Российской Федерации  и органов местного самоуправления",1,4,20000,0,25663.4]
["Центральный аппарат",1,4,20400,0,25663.4]
["Выполнение функций органами местного самоуправления",1,4,20400,"500",25663.4]
["Обеспечение деятельности финансовых, налоговых и таможенных органов и органов финансового (финансово-бюджетного) надзора",1,6,0,0,11159.1]
["Руководство и управление в сфере установленных функций органов государственной власти субъектов Российской Федерации  и органов местного самоуправления",1,6,20000,0,10959.1]
["Центральный аппарат",1,6,20400,0,9876.7000000000007]
["Выполнение функций органами местного самоуправления",1,6,20400,"500",9876.7000000000007]
["Руководитель контрольно-счетной палаты муниципального образования и его заместители",1,6,22500,0,1082.4000000000001]
["Выполнение функций органами местного самоуправления",1,6,22500,"500",1082.4000000000001]
["Целевые программы муниципальных образований",1,6,7950000,0,200]
["Долгосрочная целевая программа Черемховского районного муниципального образования \"Повышение эффективности бюджетных расходов Черемховского районного муниципального образования на 2012-2013 годы\"",1,6,7950200,0,200]
["Выполнение функций органами местного самоуправления",1,6,7950200,"500",200]
["Резервные фонды",1,11,0,0,300]
["Резервные фонды",1,11,700000,0,300]
["Резервные фонды местных администраций",1,11,700500,0,300]
["Выполнение функций органами местного самоуправления",1,11,700500,"500",300]
["Другие общегосударственные вопросы",1,13,0,0,28554.2]
["Руководство и управление в сфере установленных функций органов государственной власти субъектов Российской Федерации  и органов местного самоуправления",1,13,20000,0,20045.7]
["Центральный аппарат",1,13,20400,0,2932.3]
["Выполнение функций органами местного самоуправления",1,13,20400,"500",2932.3]
["Осуществление областных государственных полномочий по хранению, комплектованию, учету и использованию архивных документов, относящихся к государственной собственности Иркутской области",1,13,24000,0,1086]
["Выполнение функций органами местного самоуправления",1,13,24000,"500",1086]
["Осуществление областных государственных полномочий по определению персонального состава и обеспечению деятельности административных комиссий",1,13,24300,0,563.6]
["Выполнение функций органами местного самоуправления",1,13,24300,"500",563.6]
["Осуществление отдельных государственных полномочий в области производства и оборота этилового спирта, алкогольной и спиртосодержащей продукции",1,13,24400,0,375.7]
["Выполнение функций органами местного самоуправления",1,13,24400,"500",375.7]
["Осуществление отдельных областных государственных полномочий в области охраны труда",1,13,24500,0,563.6]
["Выполнение функций органами местного самоуправления",1,13,24500,"500",563.6]
["Обеспечение деятельности подведомственных учреждений",1,13,29900,0,14524.5]
["Выполнение функций казенными учреждениями",1,13,29900,"001",13624.5]
["Субсидии бюджетным учреждениям на финансовое обеспечение муниципального задания на оказание муниципальных услуг (выполнение работ)",1,13,29900,"611",900]
["Реализация государственных функций, связанных с общегосударственным управлением",1,13,920000,0,1353.5]
["Выполнение других обязательств государства",1,13,920300,0,1353.5]
["Выполнение функций органами местного самоуправления",1,13,920300,"500",1353.5]
["Учреждения по обеспечению хозяйственного обслуживания",1,13,930000,0,6500]
["Субсидии бюджетным учреждениям на финансовое обеспечение муниципального задания на оказание муниципальных услуг (выполнение работ)",1,13,930000,"611",6500]
["Целевые программы муниципальных образований",1,13,7950000,0,655]
["Долгосрочная целевая программа \"Улучшение условий и охраны труда в Черемховском районе на 2011-2013гг.\"",1,13,7951400,0,15]
["Выполнение функций органами местного самоуправления",1,13,7951400,"500",15]
["Долгосрочная целевая программа \"Инвентаризация муниципальных объектов недвижимости Черемховского районного муниципального образования на 2012-2014 годы\"",1,13,7951900,0,500]
["Выполнение функций органами местного самоуправления",1,13,7951900,"500",500]
["Комплексная программа \"Профилактика правонарушений в Черемховском районном муниципальном образовании на 2013-2016 годы\"",1,13,7952600,0,40]
["Выполнение функций органами местного самоуправления",1,13,7952600,"500",40]
["Долгосрочная целевая программа \"Поддержка молодых педагогов на территории Черемховского районного муниципального образования\" на 2012-2013 годы",1,13,7952700,0,100]
["Выполнение функций органами местного самоуправления",1,13,7952700,"500",100]
["НАЦИОНАЛЬНАЯ ЭКОНОМИКА",4,0,0,0,5130.3]
["Дорожное хозяйство(дорожные фонды)",4,9,0,0,4500.1000000000004]
["Региональные целевые программы",4,9,5220000,0,3829]
["Долгосрочная целевая программа \"Развитие автомобильных дорог общего пользования регионального или межмуниципального значения и местного значения в Иркутской области на 2011 - 2014 годы\"",4,9,5224700,0,3829]
["Выполнение функций органами местного самоуправления",4,9,5224700,"500",3829]
["Целевые программы муниципальных образований",4,9,7950000,0,671.1]
["Долгосрочная целевая программа \"Инвентаризация муниципальных объектов недвижимости Черемховского районного муниципального образования на 2012-2014 годы\"",4,9,7951900,0,468.6]
["Выполнение функций органами местного самоуправления",4,9,7951900,"500",468.6]
["Долгосрочная целевая программа \"Развитие автомобильных дорог Черемховского районного муниципального образования на 2013-2015 годы\"",4,9,7952300,0,202.5]
["Выполнение функций органами местного самоуправления",4,9,7952300,"500",202.5]
["Другие вопросы в области национальной экономики",4,12,0,0,630.20000000000005]
["Мероприятия в области строительства, архитектуры и градостроительства",4,12,3380000,0,30.2]
["Подготовка проектов правил землепользования и застройки муниципальных образований Черемховского районного муниципального образования",4,12,3380200,0,30.2]
["Выполнение функций органами местного самоуправления",4,12,3380200,"500",30.2]
["Целевые программы муниципальных образований",4,12,7950000,0,600]
["Долгосрочная целевая программа \"Инвентаризация муниципальных объектов недвижимости Черемховского районного муниципального образования на 2012-2014 годы\"",4,12,7951900,0,500]
["Выполнение функций органами местного самоуправления",4,12,7951900,"500",500]
["Долгосрочная целевая программа \"Поддержка и развитие малого и среднего предпринимательства в Черемховском районе\" на 2013-2014 годы",4,12,7952200,0,100]
["Выполнение функций органами местного самоуправления",4,12,7952200,"500",100]
["ЖИЛИЩНО-КОММУНАЛЬНОЕ ХОЗЯЙСТВО",5,0,0,0,6689.8]
["Жилищное хозяйство",5,1,0,0,1383.8]
["Поддержка жилищного хозяйства",5,1,3500000,0,1383.8]
["Мероприятия в области жилищного хозяйства",5,1,3500300,0,1383.8]
["Выполнение функций органами местного самоуправления",5,1,3500300,"500",1383.8]
["Другие вопросы в области жилищно-коммунального хозяйства",5,5,0,0,5306]
["Руководство и управление в сфере установленных функций органов государственной власти субъектов Российской Федерации  и органов местного самоуправления",5,5,20000,0,5306]
["Центральный аппарат",5,5,20400,0,5306]
["Выполнение функций органами местного самоуправления",5,5,20400,"500",5306]
["ОБРАЗОВАНИЕ",7,0,0,0,374534.40000000002]
["Дошкольное образование",7,1,0,0,73491.600000000006]
["Детские дошкольные учреждения",7,1,4200000,0,64964.1]
["Обеспечение деятельности подведомственных учреждений",7,1,4209900,0,64964.1]
["Выполнение функций казенными учреждениями",7,1,4209900,"001",64964.1]
["Региональные целевые программы",7,1,5220000,0,3027.5]
["Областная государственная целевая программа поддержки и развития учреждений дошкольного образования в Иркутской области на 2009-2014 годы",7,1,5223700,0,3027.5]
["Выполнение функций казенными учреждениями",7,1,5223700,"001",3027.5]
["Выплата заработной платы с начислениями на нее педагогическим работникам муниципальных дошкольных образовательных учреждений и муниципальных учреждений дополнительного образования",7,1,5890000,0,1465]
["Выполнение функций казенными учреждениями",7,1,5890000,"001",1465]
["Целевые программы муниципальных образований",7,1,7950000,0,4035]
["Долгосрочная целевая программа Черемховского районного муниципального образования \"Повышение эффективности бюджетных расходов Черемховского районного муниципального образования на 2012-2013 годы\"",7,1,7950200,0,2011]
["Выполнение функций казенными учреждениями",7,1,7950200,"001",2011]
["Долгосрочная целевая программа \"Безопасность образовательных учреждений на 2010-2014 гг.\"",7,1,7951000,0,572]
["Мероприятия по обеспечению пожарной безопасности",7,1,7951000,"450",572]
["Долгосрочная целевая программа энергосбережения и повышения энергетической эффективности Черемховского районного муниципального образования на 2010-2015 годы",7,1,7951100,0,0]
["Мероприятия по повышению энергетической эффективности",7,1,7951100,"451",0]
["Долгосрочная целевая программа \"Развитие дошкольного образования на 2011-2014 гг.\"",7,1,7951700,0,1102]
["Мероприятия в сфере образования",7,1,7951700,"022",1102]
["Долгосрочная целевая программа \"Совершенствование дошкольного образования Черемховского района на 2011-2014 гг.\"",7,1,7951800,0,350]
["Мероприятия в сфере образования",7,1,7951800,"022",350]
["Общее образование",7,2,0,0,292981]
["Руководство и управление в сфере установленных функций органов государственной власти субъектов Российской Федерации  и органов местного самоуправления",7,2,20000,0,238581.8]
["Обеспечение государственных гарантий прав граждан на получение общедоступного и бесплатного дошкольного, начального общего, основного общего, среднего (полного) общего образования, а также дополнительного образования в общеобразовательных учреждениях",7,2,25000,0,238581.8]
["Выполнение функций казенными учреждениями",7,2,25000,"001",238581.8]
["Школы - детские сады, школы начальные, неполные средние и средние",7,2,4210000,0,18815]
["Обеспечение деятельности подведомственных учреждений",7,2,4219900,0,18815]
["Выполнение функций казенными учреждениями",7,2,4219900,"001",18815]
["Учреждения по внешкольной работе с детьми",7,2,4230000,0,25853.4]
["Обеспечение деятельности подведомственных учреждений",7,2,4239900,0,25853.4]
["Выполнение функций казенными учреждениями",7,2,4239900,"001",25853.4]
["Выплата заработной платы с начислениями на нее педагогическим работникам муниципальных дошкольных образовательных учреждений и муниципальных учреждений дополнительного образования",7,2,5890000,0,540.1]
["Выполнение функций казенными учреждениями",7,2,5890000,"001",540.1]
["Целевые программы муниципальных образований",7,2,7950000,0,9190.7000000000007]
["Долгосрочная целевая программа Черемховского районного муниципального образования \"Повышение эффективности бюджетных расходов Черемховского районного муниципального образования на 2012-2013 годы\"",7,2,7950200,0,5469.9]
["Выполнение функций казенными учреждениями",7,2,7950200,"001",5469.9]
["Долгосрочная целевая программа \"Безопасность образовательных учреждений на 2010-2014 гг.\"",7,2,7951000,0,1128]
["Мероприятия по обеспечению пожарной безопасности",7,2,7951000,"450",1128]
["Долгосрочная целевая программа энергосбережения и повышения энергетической эффективности Черемховского районного муниципального образования на 2010-2015 годы",7,2,7951100,0,600]
["Мероприятия по повышению энергетической эффективности",7,2,7951100,"451",600]
["Долгосрочная целевая программа \"Ветхие школы Черемховского района\" на 2011-2013 гг.",7,2,7951500,0,900]
["Мероприятия в сфере образования",7,2,7951500,"022",900]
["Долгосрочная целевая программа \"Совершенствование организации питания в образовательных учреждениях Черемховского района на 2011-2013гг.\"",7,2,7951600,0,1000]
["Мероприятия в сфере образования",7,2,7951600,"022",1000]
["Долгосрочная целевая программа \"Развитие культуры в Черемховском районном муниципальном образовании на период 2012-2016 гг.\"",7,2,7952000,0,92.8]
["Мероприятия по поддержке и развитию культуры, искусства, кинематографии",7,2,7952000,"023",92.8]
["Профессиональная подготовка, переподготовка и повышение квалификации",7,5,0,0,205.5]
["Мероприятия по переподготовке и повышению квалификации",7,5,4340000,0,205.5]
["Выполнение функций казенными учреждениями",7,5,4340000,"001",108.1]
["Выполнение функций органами местного самоуправления",7,5,4340000,"500",97.4]
["Молодежная политика и оздоровление детей",7,7,0,0,222]
["Организационно-воспитательная работа с молодежью",7,7,4310000,0,46]
["Проведение мероприятий для детей и молодежи",7,7,4310100,0,46]
["Проведение мероприятия для детей и молодежи",7,7,4310100,"447",46]
["Мероприятия по проведению оздоровительной кампании детей",7,7,4320000,0,126]
["Оплата стоимости набора продуктов питания для детей в организованных органами местного самоуправления оздоровительных лагерях с дневным пребыванием детей за счет средств областного бюджета",7,7,4320300,0,126]
["Оплата стоимости набора продуктов питания для детей в организованных органами местного самоуправления оздоровительных лагерях с дневным пребыванием детей за счет средств местного бюджета ",7,7,4320302,0,126]
["Выполнение функций казенными учреждениями",7,7,4320302,"001",126]
["Целевые программы муниципальных образований",7,7,7950000,0,50]
["Долгосрочная целевая программа \"Комплексные меры профилактики злоупотребления наркотическими средствами и психотропными веществами в Черемховском районном муниципальном образовании на 2011-2013 гг.\"",7,7,7951300,0,10]
["Выполнение функций органами местного самоуправления",7,7,7951300,"500",10]
["Долгосрочная целевая программа \"Молодежная политика в Черемховском районном муниципальном образовании\" на 2013-2015 гг.",7,7,7952500,0,40]
["Проведение мероприятия для детей и молодежи",7,7,7952500,"447",40]
["Другие вопросы в области образования",7,9,0,0,7634.3]
["Руководство и управление в сфере установленных функций органов государственной власти субъектов Российской Федерации  и органов местного самоуправления",7,9,20000,0,2634.3]
["Центральный аппарат",7,9,20400,0,2634.3]
["Выполнение функций органами местного самоуправления",7,9,20400,"500",2634.3]
["Учебно-методические кабинеты, централизованные бухгалтерии, группы хозяйственного обслуживания, учебные фильмотеки, межшкольные учебно-производственные комбинаты, логопедические пункты",7,9,4520000,0,5000]
["Субсидии бюджетным учреждениям на финансовое обеспечение муниципального задания на оказание муниципальных услуг (выполнение работ)",7,9,4520000,"611",5000]
["КУЛЬТУРА И КИНЕМАТОГРАФИЯ",8,0,0,0,16604.7]
["Культура",8,1,0,0,15413]
["Учреждения культуры и мероприятия в сфере культуры и кинематографии",8,1,4400000,0,5431.2]
["Комплектование книжных фондов библиотек муниципальных образований и государственных библиотек городов Москвы и Санкт-Петербурга",8,1,4400200,0,466.3]
["Комплектование книжных фондов библиотек муниципальных образований и государственных библиотек городов Москвы и Санкт-Петербурга за счет средств федерального бюджета",8,1,4400201,0,303.60000000000002]
["Выполнение функций казенными учреждениями",8,1,4400201,"001",303.60000000000002]
["Комплектование книжных фондов библиотек муниципальных образований и государственных библиотек городов Москвы и Санкт-Петербурга за счет областного бюджета",8,1,4400202,0,162.69999999999999]
["Выполнение функций казенными учреждениями",8,1,4400202,"001",162.69999999999999]
["Обеспечение деятельности подведомственных учреждений",8,1,4409900,0,4964.8999999999996]
["Выполнение функций казенными учреждениями",8,1,4409900,"001",4964.8999999999996]
["Музеи и постоянные выставки",8,1,4410000,0,1130.4000000000001]
["Обеспечение деятельности подведомственных учреждений",8,1,4419900,0,1130.4000000000001]
["Выполнение функций казенными учреждениями",8,1,4419900,"001",1130.4000000000001]
["Библиотеки",8,1,4420000,0,7330.4]
["Обеспечение деятельности подведомственных учреждений",8,1,4429900,0,7330.4]
["Выполнение функций казенными учреждениями",8,1,4429900,"001",7330.4]
["Целевые программы муниципальных образований",8,1,7950000,0,1521]
["Долгосрочная целевая программа Черемховского районного муниципального образования \"Повышение эффективности бюджетных расходов Черемховского районного муниципального образования на 2012-2013 годы\"",8,1,7950200,0,308]
["Выполнение функций казенными учреждениями",8,1,7950200,"001",308]
["Долгосрочная целевая программа энергосбережения и повышения энергетической эффективности Черемховского районного муниципального образования на 2010-2015 годы",8,1,7951100,0,282]
["Мероприятия по повышению энергетической эффективности",8,1,7951100,"451",282]
["Долгосрочная целевая программа \"Развитие культуры в Черемховском районном муниципальном образовании на период 2012-2016 гг.\"",8,1,7952000,0,931]
["Мероприятия по поддержке и развитию культуры, искусства, кинематографии",8,1,7952000,"023",931]
["Другие вопросы в области культуры, кинематографии",8,4,0,0,1191.7]
["Руководство и управление в сфере установленных функций органов государственной власти субъектов Российской Федерации  и органов местного самоуправления",8,4,20000,0,1191.7]
["Центральный аппарат",8,4,20400,0,1191.7]
["Выполнение функций органами местного самоуправления",8,4,20400,"500",1191.7]
["Социальная политика",10,0,0,0,19800.599999999999]
["Пенсионное обеспечение",10,1,0,0,2980]
["Доплаты к пенсиям, дополнительное пенсионное обеспечение ",10,1,4910000,0,2980]
["Доплаты к пенсиям государственных служащих субъектов Российской Федерации и муниципальных служащих ",10,1,4910100,0,2980]
["Социальные выплаты",10,1,4910100,"005",2980]
["Социальное обеспечение населения",10,3,0,0,15114.5]
["Руководство и управление в сфере установленных функций органов государственной власти субъектов Российской Федерации  и органов местного самоуправления",10,3,20000,0,13896]
["Осуществление отдельных областных государственных полномочий по предоставлению мер социальной поддержки многодетным и малоимущим семьям",10,3,24600,0,6361.8]
["Социальные выплаты",10,3,24600,"005",6361.8]
["Осуществление областных государственных полномочий по предоставлению гражданам субсидий на оплату жилых помещений и коммунальных услуг",10,3,24700,0,7534.2]
["Содержание и обеспечение деятельности муниципальных служащих, осуществляющих областные государственные полномочия по предоставлению гражданам субсидий на оплату жилых помещений и коммунальных услуг",10,3,24701,0,771.9]
["Выполнение функций органами местного самоуправления",10,3,24701,"500",771.9]
["Предоставление гражданам субсидий на оплату жилых помещений и коммунальных услуг",10,3,24702,0,6762.3]
["Социальные выплаты",10,3,24702,"005",6762.3]
["Реализация государственных функций в области социальной политики",10,3,5140000,0,854]
["Мероприятия в области социальной политики",10,3,5140100,0,854]
["Социальные выплаты",10,3,5140100,"005",854]
["Региональные целевые программы",10,3,5220000,0,4.5]
["Областная государственная социальная программа \"Молодым семьям - доступное жилье\" на 2005-2019 годы",10,3,5222200,0,4.5]
["Социальные выплаты",10,3,5222200,"005",4.5]
["Целевые программы муниципальных образований",10,3,7950000,0,360]
["Долгосрочная целевая программа \"Молодым семьям-доступное жилье\" на 2012-2019 гг.",10,3,7952100,0,360]
["Социальные выплаты",10,3,7952100,"005",360]
["Охрана семьи и детства",10,4,0,0,528]
["Исполнение судебных актов, вступивших в силу до 1 января 2013 года, по обеспечению жилыми помещениями детей-сирот и детей, оставшихся без попечения родителей, лиц из числа детей-сирот и детей, оставшихся без попечения родителей, не имеющих закрепленного жилого помещения",10,4,6040000,0,528]
["Бюджетные инвестиции",10,4,6040000,"003",528]
["Другие вопросы в области социальной политики",10,6,0,0,1178.0999999999999]
["Руководство и управление в сфере установленных функций органов государственной власти субъектов Российской Федерации  и органов местного самоуправления",10,6,20000,0,1078.0999999999999]
["Осуществление областных государственных полномочий по определению персонального состава и обеспечению деятельности районных (городских), районных в городах комиссий по делам несовершеннолетних и защите их прав",10,6,24100,0,1078.0999999999999]
["Выполнение функций органами местного самоуправления",10,6,24100,"500",1078.0999999999999]
["Целевые программы муниципальных образований",10,6,7950000,0,100]
["Муниципальная целевая программа \"Поддержка, проводимых мероприятий, посвященных Дням воинской славы, памятным датам России и работе с ветеранами и инвалидами в черемховском районе на 2013-2015 гг.\"",10,6,7952400,0,100]
["Выполнение функций органами местного самоуправления",10,6,7952400,"500",100]
["ФИЗИЧЕСКАЯ КУЛЬТУРА И СПОРТ",11,0,0,0,182.4]
["Физическая культура",11,1,0,0,182.4]
["Физкультурно-оздоровительная работа и спортивные мероприятия",11,1,5120000,0,82.4]
["Мероприятия в области спорта, физической культуры и туризма",11,1,5129700,0,82.4]
["Выполнение функций органами местного самоуправления",11,1,5129700,"500",82.4]
["Целевые программы муниципальных образований",11,1,7950000,0,100]
["Долгосрочная целевая программа \"Развитие физической культуры, спорта и туризма в Черемховском районном муниципальном образовании на 2011-2013 гг.\"",11,1,7951200,0,100]
["Выполнение функций органами местного самоуправления",11,1,7951200,"500",100]
["СРЕДСТВА МАССОВОЙ ИНФОРМАЦИИ",12,0,0,0,2000]
["Периодическая печать и издательства",12,2,0,0,2000]
["Периодические издания, учрежденные органами законодательной и исполнительной власти",12,2,4570000,0,2000]
["Государственная поддержка в сфере культуры, кинематографии и средств массовой информации",12,2,4578500,0,2000]
["Субсидии юридическим лицам",12,2,4578500,"006",2000]
["ОБСЛУЖИВАНИЕ ГОСУДАРСТВЕННОГО И МУНИЦИПАЛЬНОГО ДОЛГА",13,0,0,0,60]
["Обслуживание внутреннего государственного и муниципального долга",13,1,0,0,60]
["Процентные платежи по долговым обязательствам",13,1,650000,0,60]
["Процентные платежи по муниципальному долгу",13,1,650300,0,60]
["Прочие расходы",13,1,650300,"013",60]
["МЕЖБЮДЖЕТНЫЕ ТРАНСФЕРТЫ ОБЩЕГО ХАРАКТЕРА БЮДЖЕТАМ СУБЪЕКТОВ РОССИЙСКОЙ ФЕДЕРАЦИИ И МУНИЦИПАЛЬНЫХ ОБРАЗОВАНИЙ ",14,0,0,0,5375]
["Дотации на выравнивание бюджетной обеспеченности субъектов Российской Федерации и муниципальных образований",14,1,0,0,3500]
["Выравнивание бюджетной обеспечености",14,1,5160000,0,3500]
["Выравнивание бюджетной обеспеченности",14,1,5160100,0,3500]
["Выравнивание бюджетной обеспеченности поселений из районного фонда финансовой поддержки",14,1,5160130,0,3500]
["Фонд финансовой поддержки",14,1,5160130,"008",3500]
["Прочие межбюджетные трансферты общего характера бюджетам субъектов Российской Федерации и муниципальных образований ",14,3,0,0,1875]
["Целевые программы муниципальных образований",14,3,7950000,0,1875]
["Долгосрочная целевая программа Черемховского районного муниципального образования \"Повышение эффективности бюджетных расходов Черемховского районного муниципального образования на 2012-2013 годы\"",14,3,7950200,0,1875]
["Иные межбюджетные трансферты",14,3,7950200,"017",1875]
["ИТОГО",{"$nulls":4},499672]
[]
["Начальник финансового управления",null,"Ю.Н. Гайдук"]

{"sheet":"прил10","index":4,"n_rows":336,"n_cols":7,"rows_kept":336,"cut":false,"hidden":false,"merged":[[9,0,9,6],[335,5,335,6],[332,0,332,5],[11,0,12,0],[11,1,11,5],[11,6,12,6]]}
{"$rows_empty":9}
["Распределение  бюджетных ассигнований по разделам, подразделам, целевым статьям и видам расходов классификации расходов бюджетов в ведомственной структуре расходов бюджета Черемховского районного муниципального образования на 2013 год"]
[]
["Наименование показателя","Код",{"$nulls":4},"Сумма, тыс. руб. "]
[null,"ГРБС","раздела","подраздела","целевой статьи","вида расходов"]
[1,2,3,4,5,6,7]
["Отдел по культуре и библиотечному обслуживанию АЧРМО",904,0,0,0,0,21704.1]
["ОБРАЗОВАНИЕ",904,7,0,0,0,5099.3999999999996]
["Общее образование",904,7,2,0,0,5091.3]
["Учреждения по внешкольной работе с детьми",904,7,2,4230000,0,4823.5]
["Обеспечение деятельности подведомственных учреждений",904,7,2,4239900,0,4823.5]
["Выполнение функций казенными учреждениями",904,7,2,4239900,"001",4823.5]
["Целевые программы муниципальных образований",904,7,2,7950000,0,267.8]
["Долгосрочная целевая программа Черемховского районного муниципального образования \"Повышение эффективности бюджетных расходов Черемховского районного муниципального образования на 2012-2013 годы\"",904,7,2,7950200,0,175]
["Выполнение функций казенными учреждениями",904,7,2,7950200,"001",175]
["Долгосрочная целевая программа \"Развитие культуры в Черемховском районном муниципальном образовании на период 2012-2016 гг.\"",904,7,2,7952000,0,92.8]
["Мероприятия по поддержке и развитию культуры, искусства, кинематографии",904,7,2,7952000,"023",92.8]
["Профессиональная подготовка, переподготовка и повышение квалификации",904,7,5,0,0,8.1]
["Мероприятия по переподготовке и повышению квалификации",904,7,5,4340000,0,8.1]
["Выполнение функций казенными учреждениями",904,7,5,4340000,"001",8.1]
["КУЛЬТУРА И КИНЕМАТОГРАФИЯ",904,8,0,0,0,16604.7]
["Культура",904,8,1,0,0,15413]
["Учреждения культуры и мероприятия в сфере культуры и кинематографии",904,8,1,4400000,0,5431.2]
["Комплектование книжных фондов библиотек муниципальных образований и государственных библиотек городов Москвы и Санкт-Петербурга",904,8,1,4400200,0,466.3]
["Комплектование книжных фондов библиотек муниципальных образований и государственных библиотек городов Москвы и Санкт-Петербурга за счет средств федерального бюджета",904,8,1,4400201,0,303.60000000000002]
["Выполнение функций казенными учреждениями",904,8,1,4400201,"001",303.60000000000002]
["Комплектование книжных фондов библиотек муниципальных образований и государственных библиотек городов Москвы и Санкт-Петербурга за счет областного бюджета",904,8,1,4400202,0,162.69999999999999]
["Выполнение функций казенными учреждениями",904,8,1,4400202,"001",162.69999999999999]
["Обеспечение деятельности подведомственных учреждений",904,8,1,4409900,0,4964.8999999999996]
["Выполнение функций казенными учреждениями",904,8,1,4409900,"001",4964.8999999999996]
["Музеи и постоянные выставки",904,8,1,4410000,0,1130.4000000000001]
["Обеспечение деятельности подведомственных учреждений",904,8,1,4419900,0,1130.4000000000001]
["Выполнение функций казенными учреждениями",904,8,1,4419900,"001",1130.4000000000001]
["Библиотеки",904,8,1,4420000,0,7330.4]
["Обеспечение деятельности подведомственных учреждений",904,8,1,4429900,0,7330.4]
["Выполнение функций казенными учреждениями",904,8,1,4429900,"001",7330.4]
["Целевые программы муниципальных образований",904,8,1,7950000,0,1521]
["Долгосрочная целевая программа Черемховского районного муниципального образования \"Повышение эффективности бюджетных расходов Черемховского районного муниципального образования на 2012-2013 годы\"",904,8,1,7950200,0,308]
["Выполнение функций казенными учреждениями",904,8,1,7950200,"001",308]
["Долгосрочная целевая программа энергосбережения и повышения энергетической эффективности Черемховского районного муниципального образования на 2010-2015 годы",904,8,1,7951100,0,282]
["Мероприятия по повышению энергетической эффективности",904,8,1,7951100,"451",282]
["Долгосрочная целевая программа \"Развитие культуры в Черемховском районном муниципальном образовании на период 2012-2016 гг.\"",904,8,1,7952000,0,931]
["Мероприятия по поддержке и развитию культуры, искусства, кинематографии",904,8,1,7952000,"023",931]
["Другие вопросы в области культуры, кинематографии",904,8,4,0,0,1191.7]
["Руководство и управление в сфере установленных функций органов государственной власти субъектов Российской Федерации  и органов местного самоуправления",904,8,4,20000,0,1191.7]
["Центральный аппарат",904,8,4,20400,0,1191.7]
["Выполнение функций органами местного самоуправления",904,8,4,20400,"500",1191.7]
["Отдел образования АЧРМО",907,0,0,0,0,375603.4]
["ОБРАЗОВАНИЕ",907,7,0,0,0,369241.59999999998]
["Дошкольное образование",907,7,1,0,0,73491.600000000006]
["Детские дошкольные учреждения",907,7,1,4200000,0,64964.1]
["Обеспечение деятельности подведомственных учреждений",907,7,1,4209900,0,64964.1]
["Выполнение функций казенными учреждениями",907,7,1,4209900,"001",64964.1]
["Региональные целевые программы",907,7,1,5220000,0,3027.5]
["Областная государственная целевая программа поддержки и развития учреждений дошкольного образования в Иркутской области на 2009-2014 годы",907,7,1,5223700,0,3027.5]
["Выполнение функций казенными учреждениями",907,7,1,5223700,"001",3027.5]
["Выплата заработной платы с начислениями на нее педагогическим работникам муниципальных дошкольных образовательных учреждений и муниципальных учреждений дополнительного образования",907,7,1,5890000,0,1465]
["Выполнение функций казенными учреждениями",907,7,1,5890000,"001",1465]
["Целевые программы муниципальных образований",907,7,1,7950000,0,4035]
["Долгосрочная целевая программа Черемховского районного муниципального образования \"Повышение эффективности бюджетных расходов Черемховского районного муниципального образования на 2012-2013 годы\"",907,7,1,7950200,0,2011]
["Выполнение функций казенными учреждениями",907,7,1,7950200,"001",2011]
["Долгосрочная целевая программа \"Безопасность образовательных учреждений на 2010-2014 гг.\"",907,7,1,7951000,0,572]
["Мероприятия по обеспечению пожарной безопасности",907,7,1,7951000,"450",572]
["Долгосрочная целевая программа энергосбережения и повышения энергетической эффективности Черемховского районного муниципального образования на 2010-2015 годы",907,7,1,7951100,0,0]
["Мероприятия по повышению энергетической эффективности",907,7,1,7951100,"451",0]
["Долгосрочная целевая программа \"Развитие дошкольного образования на 2011-2014 гг.\"",907,7,1,7951700,0,1102]
["Мероприятия в сфере образования",907,7,1,7951700,"022",1102]
["Долгосрочная целевая программа \"Совершенствование дошкольного образования Черемховского района на 2011-2014 гг.\"",907,7,1,7951800,0,350]
["Мероприятия в сфере образования",907,7,1,7951800,"022",350]
["Общее образование",907,7,2,0,0,287889.7]
["Руководство и управление в сфере установленных функций органов государственной власти субъектов Российской Федерации  и органов местного самоуправления",907,7,2,20000,0,238581.9]
["Обеспечение государственных гарантий прав граждан на получение общедоступного и бесплатного дошкольного, начального общего, основного общего, среднего (полного) общего образования, а также дополнительного образования в общеобразовательных учреждениях",907,7,2,25000,0,238581.9]
["Выполнение функций казенными учреждениями",907,7,2,25000,"001",238581.9]
["Школы - детские сады, школы начальные, неполные средние и средние",907,7,2,4210000,0,18815]
["Обеспечение деятельности подведомственных учреждений",907,7,2,4219900,0,18815]
["Выполнение функций казенными учреждениями",907,7,2,4219900,"001",18815]
["Учреждения по внешкольной работе с детьми",907,7,2,4230000,0,21029.8]
["Обеспечение деятельности подведомственных учреждений",907,7,2,4239900,0,21029.8]
["Выполнение функций казенными учреждениями",907,7,2,4239900,"001",21029.8]
["Выплата заработной платы с начислениями на нее педагогическим работникам муниципальных дошкольных образовательных учреждений и муниципальных учреждений дополнительного образования",907,7,2,5890000,0,540.1]
["Выполнение функций казенными учреждениями",907,7,2,5890000,"001",540.1]
["Целевые программы муниципальных образований",907,7,2,7950000,0,8922.9]
["Долгосрочная целевая программа Черемховского районного муниципального образования \"Повышение эффективности бюджетных расходов Черемховского районного муниципального образования на 2012-2013 годы\"",907,7,2,7950200,0,5294.9]
["Выполнение функций казенными учреждениями",907,7,2,7950200,"001",5294.9]
["Долгосрочная целевая программа \"Безопасность образовательных учреждений на 2010-2014 гг.\"",907,7,2,7951000,0,1128]
["Мероприятия по обеспечению пожарной безопасности",907,7,2,7951000,"450",1128]
["Долгосрочная целевая программа энергосбережения и повышения энергетической эффективности Черемховского районного муниципального образования на 2010-2015 годы",907,7,2,7951100,0,600]
["Мероприятия по повышению энергетической эффективности",907,7,2,7951100,"451",600]
["Долгосрочная целевая программа \"Ветхие школы Черемховского района\" на 2011-2013 гг.",907,7,2,7951500,0,900]
["Мероприятия в сфере образования",907,7,2,7951500,"022",900]
["Долгосрочная целевая программа \"Совершенствование организации питания в образовательных учреждениях Черемховского района на 2011-2013гг.\"",907,7,2,7951600,0,1000]
["Мероприятия в сфере образования",907,7,2,7951600,"022",1000]
["Профессиональная подготовка, переподготовка и повышение квалификации",907,7,5,0,0,100]
["Мероприятия по переподготовке и повышению квалификации",907,7,5,4340000,0,100]
["Выполнение функций казенными учреждениями",907,7,5,4340000,"001",100]
["Молодежная политика и оздоровление детей",907,7,7,0,0,126]
["Мероприятия по проведению оздоровительной кампании детей",907,7,7,4320000,0,126]
["Оплата стоимости набора продуктов питания для детей в организованных органами местного самоуправления оздоровительных лагерях с дневным пребыванием детей за счет средств областного бюджета",907,7,7,4320300,0,126]
["Оплата стоимости набора продуктов питания для детей в организованных органами местного самоуправления оздоровительных лагерях с дневным пребыванием детей за счет средств местного бюджета ",907,7,7,4320302,0,126]
["Выполнение функций казенными учреждениями",907,7,7,4320302,"001",126]
["Другие вопросы в области образования",907,7,9,0,0,7634.3]
["Руководство и управление в сфере установленных функций органов государственной власти субъектов Российской Федерации  и органов местного самоуправления",907,7,9,20000,0,2634.3]
["Центральный аппарат",907,7,9,20400,0,2634.3]
["Выполнение функций органами местного самоуправления",907,7,9,20400,"500",2634.3]
["Учебно-методические кабинеты, централизованные бухгалтерии, группы хозяйственного обслуживания, учебные фильмотеки, межшкольные учебно-производственные комбинаты, логопедические пункты",907,7,9,4520000,0,5000]
["Субсидии бюджетным учреждениям на финансовое обеспечение муниципального задания на оказание муниципальных услуг (выполнение работ)",907,7,9,4520000,"611",5000]
["Социальная политика",907,10,0,0,0,6361.8]
["Социальное обеспечение населения",907,10,3,0,0,6361.8]
["Руководство и управление в сфере установленных функций органов государственной власти субъектов Российской Федерации  и органов местного самоуправления",907,10,3,20000,0,6361.8]
["Осуществление отдельных областных государственных полномочий по предоставлению мер социальной поддержки многодетным и малоимущим семьям",907,10,3,24600,0,6361.8]
["Социальные выплаты",907,10,3,24600,"005",6361.8]
["Финансовое управление администрации ЧРМО",910,0,0,0,0,{"$f":"27631.9-30.2","v":27601.7}]
["ОБЩЕГОСУДАРСТВЕННЫЕ ВОПРОСЫ",910,1,0,0,0,22106.7]
["Обеспечение деятельности финансовых, налоговых и таможенных органов и органов финансового (финансово-бюджетного) надзора",910,1,6,0,0,8482.2000000000007]
["Руководство и управление в сфере установленных функций органов государственной власти субъектов Российской Федерации  и органов местного самоуправления",910,1,6,20000,0,8282.2000000000007]
["Центральный аппарат",910,1,6,20400,0,8282.2000000000007]
["Выполнение функций органами местного самоуправления",910,1,6,20400,"500",8282.2000000000007]
["Целевые программы муниципальных образований",910,1,6,7950000,0,200]
["Долгосрочная целевая программа Черемховского районного муниципального образования \"Повышение эффективности бюджетных расходов Черемховского районного муниципального образования на 2012-2013 годы\"",910,1,6,7950200,0,200]
["Выполнение функций органами местного самоуправления",910,1,6,7950200,"500",200]
["Другие общегосударственные вопросы",910,1,13,0,0,13624.5]
["Руководство и управление в сфере установленных функций органов государственной власти субъектов Российской Федерации  и органов местного самоуправления",910,1,13,20000,0,13624.5]
["Обеспечение деятельности подведомственных учреждений",910,1,13,29900,0,13624.5]
["Выполнение функций казенными учреждениями",910,1,13,29900,"001",13624.5]
["ОБРАЗОВАНИЕ",910,7,0,0,0,60]
["Профессиональная подготовка, переподготовка и повышение квалификации",910,7,5,0,0,60]
["Мероприятия по переподготовке и повышению квалификации",910,7,5,4340000,0,60]
["Выполнение функций органами местного самоуправления",910,7,5,4340000,"500",60]
["ОБСЛУЖИВАНИЕ ГОСУДАРСТВЕННОГО И МУНИЦИПАЛЬНОГО ДОЛГА",910,13,0,0,0,60]
["Обслуживание внутреннего государственного и муниципального долга",910,13,1,0,0,60]
["Процентные платежи по долговым обязательствам",910,13,1,650000,0,60]
["Процентные платежи по муниципальному долгу",910,13,1,650300,0,60]
["Прочие расходы",910,13,1,650300,"013",60]
["МЕЖБЮДЖЕТНЫЕ ТРАНСФЕРТЫ ОБЩЕГО ХАРАКТЕРА БЮДЖЕТАМ СУБЪЕКТОВ РОССИЙСКОЙ ФЕДЕРАЦИИ И МУНИЦИПАЛЬНЫХ ОБРАЗОВАНИЙ ",910,14,0,0,0,5375]
["Дотации на выравнивание бюджетной обеспеченности субъектов Российской Федерации и муниципальных образований",910,14,1,0,0,3500]
["Выравнивание бюджетной обеспечености",910,14,1,5160000,0,3500]
["Выравнивание бюджетной обеспеченности",910,14,1,5160100,0,3500]
["Выравнивание бюджетной обеспеченности поселений из районного фонда финансовой поддержки",910,14,1,5160130,0,3500]
["Фонд финансовой поддержки",910,14,1,5160130,"008",3500]
["Прочие межбюджетные трансферты общего характера бюджетам субъектов Российской Федерации и муниципальных образований ",910,14,3,0,0,1875]
["Целевые программы муниципальных образований",910,14,3,7950000,0,1875]
["Долгосрочная целевая программа Черемховского районного муниципального образования \"Повышение эффективности бюджетных расходов Черемховского районного муниципального образования на 2012-2013 годы\"",910,14,3,7950200,0,1875]
["Иные межбюджетные трансферты",910,14,3,7950200,"017",1875]
["Комитет по управлению муниципальным имуществом ЧРМО",913,0,0,0,0,14967.9]
["ОБЩЕГОСУДАРСТВЕННЫЕ ВОПРОСЫ",913,1,0,0,0,11405.9]
["Другие общегосударственные вопросы",913,1,13,0,0,11405.9]
["Руководство и управление в сфере установленных функций органов государственной власти субъектов Российской Федерации  и органов местного самоуправления",913,1,13,20000,0,3832.3]
["Центральный аппарат",913,1,13,20400,0,2932.3]
["Выполнение функций органами местного самоуправления",913,1,13,20400,"500",2932.3]
["Обеспечение деятельности подведомственных учреждений",913,1,13,29900,0,900]
["Субсидии бюджетным учреждениям на финансовое обеспечение муниципального задания на оказание муниципальных услуг (выполнение работ)",913,1,13,29900,"611",900]
["Реализация государственных функций, связанных с общегосударственным управлением",913,1,13,920000,0,573.6]
["Выполнение других обязательств государства",913,1,13,920300,0,573.6]
["Выполнение функций органами местного самоуправления",913,1,13,920300,"500",573.6]
["Учреждения по обеспечению хозяйственного обслуживания",913,1,13,930000,0,6500]
["Субсидии бюджетным учреждениям на финансовое обеспечение муниципального задания на оказание муниципальных услуг (выполнение работ)",913,1,13,930000,"611",6500]
["Целевые программы муниципальных образований",913,1,13,7950000,0,500]
["Долгосрочная целевая программа \"Инвентаризация муниципальных объектов недвижимости Черемховского районного муниципального образования на 2012-2014 годы\"",913,1,13,7951900,0,500]
["Выполнение функций органами местного самоуправления",913,1,13,7951900,"500",500]
["НАЦИОНАЛЬНАЯ ЭКОНОМИКА",913,4,0,0,0,968.6]
["Дорожное хозяйство(дорожные фонды)",913,4,9,0,0,468.6]
["Целевые программы муниципальных образований",913,4,9,7950000,0,468.6]
["Долгосрочная целевая программа \"Инвентаризация муниципальных объектов недвижимости Черемховского районного муниципального образования на 2012-2014 годы\"",913,4,9,7951900,0,468.6]
["Выполнение функций органами местного самоуправления",913,4,9,7951900,"500",468.6]
["Другие вопросы в области национальной экономики",913,4,12,0,0,500]
["Целевые программы муниципальных образований",913,4,12,7950000,0,500]
["Долгосрочная целевая программа \"Инвентаризация муниципальных объектов недвижимости Черемховского районного муниципального образования на 2012-2014 годы\"",913,4,12,7951900,0,500]
["Выполнение функций органами местного самоуправления",913,4,12,7951900,"500",500]
["ЖИЛИЩНО-КОММУНАЛЬНОЕ ХОЗЯЙСТВО",913,5,0,0,0,54]
["Жилищное хозяйство",913,5,1,0,0,54]
["Поддержка жилищного хозяйства",913,5,1,3500000,0,54]
["Мероприятия в области жилищного хозяйства",913,5,1,3500300,0,54]
["Выполнение функций органами местного самоуправления",913,5,1,3500300,"500",54]
["ОБРАЗОВАНИЕ",913,7,0,0,0,11.4]
["Профессиональная подготовка, переподготовка и повышение квалификации",913,7,5,0,0,11.4]
["Мероприятия по переподготовке и повышению квалификации",913,7,5,4340000,0,11.4]
["Выполнение функций органами местного самоуправления",913,7,5,4340000,"500",11.4]
["Социальная политика",913,10,0,0,0,528]
["Охрана семьи и детства",913,10,4,0,0,528]
["Исполнение судебных актов, вступивших в силу до 1 января 2013 года, по обеспечению жилыми помещениями детей-сирот и детей, оставшихся без попечения родителей, лиц из числа детей-сирот и детей, оставшихся без попечения родителей, не имеющих закрепленного жилого помещения",913,10,4,6040000,0,528]
["Бюджетные инвестиции",913,10,4,6040000,"003",528]
["СРЕДСТВА МАССОВОЙ ИНФОРМАЦИИ",913,12,0,0,0,2000]
["Периодическая печать и издательства",913,12,2,0,0,2000]
["Периодические издания, учрежденные органами законодательной и исполнительной власти",913,12,2,4570000,0,2000]
["Государственная поддержка в сфере культуры, кинематографии и средств массовой информации",913,12,2,4578500,0,2000]
["Субсидии юридическим лицам",913,12,2,4578500,"006",2000]
["Дума ЧРМО",916,0,0,0,0,1206.0999999999999]
["ОБЩЕГОСУДАРСТВЕННЫЕ ВОПРОСЫ",916,1,0,0,0,1206.0999999999999]
["Функционирование законодательных (представительных) органов государственной власти и представительных органов муниципальных образований",916,1,3,0,0,1206.0999999999999]
["Руководство и управление в сфере установленных функций органов государственной власти субъектов Российской Федерации  и органов местного самоуправления",916,1,3,20000,0,1206.0999999999999]
["Центральный аппарат",916,1,3,20400,0,372.1]
["Выполнение функций органами местного самоуправления",916,1,3,20400,"500",372.1]
["Председатель представительного органа муниципального образования",916,1,3,21100,0,834]
["Выполнение функций органами местного самоуправления",916,1,3,21100,"500",834]
["Администрация ЧРМО",917,0,0,0,0,42390.7]
["ОБЩЕГОСУДАРСТВЕННЫЕ ВОПРОСЫ",917,1,0,0,0,31250.400000000001]
["Функционирование высшего должностного лица субъекта Российской Федерации и муниципального образования",917,1,2,0,0,2412]
["Руководство и управление в сфере установленных функций органов государственной власти субъектов Российской Федерации  и органов местного самоуправления",917,1,2,20000,0,2412]
["Глава муниципального образования",917,1,2,20300,0,2412]
["Выполнение функций органами местного самоуправления",917,1,2,20300,"500",2412]
["Функционирование Правительства Российской Федерации, высших исполнительных органов государственной власти субъектов Российской Федерации, местных администраций",917,1,4,0,0,25663.5]
["Руководство и управление в сфере установленных функций органов государственной власти субъектов Российской Федерации  и органов местного самоуправления",917,1,4,20000,0,25663.5]
["Центральный аппарат",917,1,4,20400,0,25663.5]
["Выполнение функций органами местного самоуправления",917,1,4,20400,"500",25663.5]
["Резервные фонды",917,1,11,0,0,300]
["Резервные фонды",917,1,11,700000,0,300]
["Резервные фонды местных администраций",917,1,11,700500,0,300]
["Выполнение функций органами местного самоуправления",917,1,11,700500,"500",300]
["Другие общегосударственные вопросы",917,1,13,0,0,2874.9]
["Руководство и управление в сфере установленных функций органов государственной власти субъектов Российской Федерации  и органов местного самоуправления",917,1,13,20000,0,2588.9]
["Осуществление областных государственных полномочий по хранению, комплектованию, учету и использованию архивных документов, относящихся к государственной собственности Иркутской области",917,1,13,24000,0,1086]
["Выполнение функций органами местного самоуправления",917,1,13,24000,"500",1086]
["Осуществление областных государственных полномочий по определению персонального состава и обеспечению деятельности административных комиссий",917,1,13,24300,0,563.6]
["Выполнение функций органами местного самоуправления",917,1,13,24300,"500",563.6]
["Осуществление отдельных государственных полномочий в области производства и оборота этилового спирта, алкогольной и спиртосодержащей продукции",917,1,13,24400,0,375.7]
["Выполнение функций органами местного самоуправления",917,1,13,24400,"500",375.7]
["Осуществление отдельных областных государственных полномочий в области охраны труда",917,1,13,24500,0,563.6]
["Выполнение функций органами местного самоуправления",917,1,13,24500,"500",563.6]
["Реализация государственных функций, связанных с общегосударственным управлением",917,1,13,920000,0,131]
["Выполнение других обязательств государства",917,1,13,920300,0,131]
["Выполнение функций органами местного самоуправления",917,1,13,920300,"500",131]
["Целевые программы муниципальных образований",917,1,13,7950000,0,155]
["Долгосрочная целевая программа \"Улучшение условий и охраны труда в Черемховском районе на 2011-2013гг.\"",917,1,13,7951400,0,15]
["Выполнение функций органами местного самоуправления",917,1,13,7951400,"500",15]
["Комплексная программа \"Профилактика правонарушений в Черемховском районном муниципальном образовании на 2013-2016 годы\"",917,1,13,7952600,0,40]
["Выполнение функций органами местного самоуправления",917,1,13,7952600,"500",40]
["Долгосрочная целевая программа \"Поддержка молодых педагогов на территории Черемховского районного муниципального образования\" на 2012-2013 годы",917,1,13,7952700,0,100]
["Выполнение функций органами местного самоуправления",917,1,13,7952700,"500",100]
["НАЦИОНАЛЬНАЯ ЭКОНОМИКА",917,4,0,0,0,4131.5]
["Дорожное хозяйство(дорожные фонды)",917,4,9,0,0,4031.5]
["Региональные целевые программы",917,4,9,5220000,0,3829]
["Долгосрочная целевая программа \"Развитие автомобильных дорог общего пользования регионального или межмуниципального значения и местного значения в Иркутской области на 2011 - 2014 годы\"",917,4,9,5224700,0,3829]
["Выполнение функций органами местного самоуправления",917,4,9,5224700,"500",3829]
["Целевые программы муниципальных образований",917,4,9,7950000,0,202.5]
["Долгосрочная целевая программа \"Развитие автомобильных дорог Черемховского районного муниципального образования на 2013-2015 годы\"",917,4,9,7952300,0,202.5]
["Выполнение функций органами местного самоуправления",917,4,9,7952300,"500",202.5]
["Другие вопросы в области национальной экономики",917,4,12,0,0,100]
["Целевые программы муниципальных образований",917,4,12,7950000,0,100]
["Долгосрочная целевая программа \"Поддержка и развитие малого и среднего предпринимательства в Черемховском районе\" на 2013-2014 годы",917,4,12,7952200,0,100]
["Выполнение функций органами местного самоуправления",917,4,12,7952200,"500",100]
["ЖИЛИЩНО-КОММУНАЛЬНОЕ ХОЗЯЙСТВО",917,5,0,0,0,1329.8]
["Жилищное хозяйство",917,5,1,0,0,1329.8]
["Поддержка жилищного хозяйства",917,5,1,3500000,0,1329.8]
["Мероприятия в области жилищного хозяйства",917,5,1,3500300,0,1329.8]
["Выполнение функций органами местного самоуправления",917,5,1,3500300,"500",1329.8]
["ОБРАЗОВАНИЕ",917,7,0,0,0,120]
["Профессиональная подготовка, переподготовка и повышение квалификации",917,7,5,0,0,24]
["Мероприятия по переподготовке и повышению квалификации",917,7,5,4340000,0,24]
["Выполнение функций органами местного самоуправления",917,7,5,4340000,"500",24]
["Молодежная политика и оздоровление детей",917,7,7,0,0,96]
["Организационно-воспитательная работа с молодежью",917,7,7,4310000,0,46]
["Проведение мероприятий для детей и молодежи",917,7,7,4310100,0,46]
["Проведение мероприятия для детей и молодежи",917,7,7,4310100,"447",46]
["Целевые программы муниципальных образований",917,7,7,7950000,0,50]
["Долгосрочная целевая программа \"Комплексные меры профилактики злоупотребления наркотическими средствами и психотропными веществами в Черемховском районном муниципальном образовании на 2011-2013 гг.\"",917,7,7,7951300,0,10]
["Выполнение функций органами местного самоуправления",917,7,7,7951300,"500",10]
["Долгосрочная целевая программа \"Молодежная политика в Черемховском районном муниципальном образовании\" на 2013-2015 гг.",917,7,7,7952500,0,40]
["Проведение мероприятия для детей и молодежи",917,7,7,7952500,"447",40]
["Социальная политика",917,10,0,0,0,5376.6]
["Пенсионное обеспечение",917,10,1,0,0,2980]
["Доплаты к пенсиям, дополнительное пенсионное обеспечение ",917,10,1,4910000,0,2980]
["Доплаты к пенсиям государственных служащих субъектов Российской Федерации и муниципальных служащих ",917,10,1,4910100,0,2980]
["Социальные выплаты",917,10,1,4910100,"005",2980]
["Социальное обеспечение населения",917,10,3,0,0,1218.5]
["Реализация государственных функций в области социальной политики",917,10,3,5140000,0,854]
["Мероприятия в области социальной политики",917,10,3,5140100,0,854]
["Социальные выплаты",917,10,3,5140100,"005",854]
["Региональные целевые программы",917,10,3,5220000,0,4.5]
["Областная государственная социальная программа \"Молодым семьям - доступное жилье\" на 2005-2019 годы",917,10,3,5222200,0,4.5]
["Социальные выплаты",917,10,3,5222200,"005",4.5]
["Целевые программы муниципальных образований",917,10,3,7950000,0,360]
["Долгосрочная целевая программа \"Молодым семьям-доступное жилье\" на 2012-2019 гг.",917,10,3,7952100,0,360]
["Социальные выплаты",917,10,3,7952100,"005",360]
["Другие вопросы в области социальной политики",917,10,6,0,0,1178.0999999999999]
["Руководство и управление в сфере установленных функций органов государственной власти субъектов Российской Федерации  и органов местного самоуправления",917,10,6,20000,0,1078.0999999999999]
["Осуществление областных государственных полномочий по определению персонального состава и обеспечению деятельности районных (городских), районных в городах комиссий по делам несовершеннолетних и защите их прав",917,10,6,24100,0,1078.0999999999999]
["Выполнение функций органами местного самоуправления",917,10,6,24100,"500",1078.0999999999999]
["Целевые программы муниципальных образований",917,10,6,7950000,0,100]
["Муниципальная целевая программа \"Поддержка, проводимых мероприятий, посвященных Дням воинской славы, памятным датам России и работе с ветеранами и инвалидами в черемховском районе на 2013-2015 гг.\"",917,10,6,7952400,0,100]
["Выполнение функций органами местного самоуправления",917,10,6,7952400,"500",100]
["ФИЗИЧЕСКАЯ КУЛЬТУРА И СПОРТ",917,11,0,0,0,182.4]
["Физическая культура",917,11,1,0,0,182.4]
["Физкультурно-оздоровительная работа и спортивные мероприятия",917,11,1,5120000,0,82.4]
["Мероприятия в области спорта, физической культуры и туризма",917,11,1,5129700,0,82.4]
["Выполнение функций органами местного самоуправления",917,11,1,5129700,"500",82.4]
["Целевые программы муниципальных образований",917,11,1,7950000,0,100]
["Долгосрочная целевая программа \"Развитие физической культуры, спорта и туризма в Черемховском районном муниципальном образовании на 2011-2013 гг.\"",917,11,1,7951200,0,100]
["Выполнение функций органами местного самоуправления",917,11,1,7951200,"500",100]
["Управление жилищно-коммунального хозяйства, строительства, транспорта, связи и экологии АЧРМО",918,0,0,0,0,{"$f":"13489+30.2","v":13519.2}]
["ОБЩЕГОСУДАРСТВЕННЫЕ ВОПРОСЫ",918,1,0,0,0,648.9]
["Другие общегосударственные вопросы",918,1,13,0,0,648.9]
["Реализация государственных функций, связанных с общегосударственным управлением",918,1,13,920000,0,648.9]
["Выполнение других обязательств государства",918,1,13,920300,0,648.9]
["Выполнение функций органами местного самоуправления",918,1,13,920300,"500",648.9]
["НАЦИОНАЛЬНАЯ ЭКОНОМИКА",918,4,0,0,0,30.2]
["Другие вопросы в области национальной экономики",918,4,12,0,0,30.2]
["Мероприятия в области строительства, архитектуры и градостроительства",918,4,12,3380000,0,30.2]
["Подготовка проектов правил землепользования и застройки муниципальных образований Черемховского районного муниципального образования",918,4,12,3380200,0,30.2]
["Выполнение функций органами местного самоуправления",918,4,12,3380200,"500",30.2]
["ЖИЛИЩНО-КОММУНАЛЬНОЕ ХОЗЯЙСТВО",918,5,0,0,0,5305.9]
["Другие вопросы в области жилищно-коммунального хозяйства",918,5,5,0,0,5305.9]
["Руководство и управление в сфере установленных функций органов государственной власти субъектов Российской Федерации  и органов местного самоуправления",918,5,5,20000,0,5305.9]
["Центральный аппарат",918,5,5,20400,0,5305.9]
["Выполнение функций органами местного самоуправления",918,5,5,20400,"500",5305.9]
["Социальная политика",918,10,0,0,0,7534.2]
["Социальное обеспечение населения",918,10,3,0,0,7534.2]
["Руководство и управление в сфере установленных функций органов государственной власти субъектов Российской Федерации  и органов местного самоуправления",918,10,3,20000,0,7534.2]
["Осуществление областных государственных полномочий по предоставлению гражданам субсидий на оплату жилых помещений и коммунальных услуг",918,10,3,24700,0,7534.2]
["Содержание и обеспечение деятельности муниципальных служащих, осуществляющих областные государственные полномочия по предоставлению гражданам субсидий на оплату жилых помещений и коммунальных услуг",918,10,3,24701,0,771.9]
["Выполнение функций органами местного самоуправления",918,10,3,24701,"500",771.9]
["Предоставление гражданам субсидий на оплату жилых помещений и коммунальных услуг",918,10,3,24702,0,6762.3]
["Социальные выплаты",918,10,3,24702,"005",6762.3]
["Контрольно-счетная палата ЧРМО",923,0,0,0,0,2678.9]
["ОБЩЕГОСУДАРСТВЕННЫЕ ВОПРОСЫ",923,1,0,0,0,2676.9]
["Обеспечение деятельности финансовых, налоговых и таможенных органов и органов финансового (финансово-бюджетного) надзора",923,1,6,0,0,2676.9]
["Руководство и управление в сфере установленных функций органов государственной власти субъектов Российской Федерации  и органов местного самоуправления",923,1,6,20000,0,2676.9]
["Центральный аппарат",923,1,6,20400,0,1594.5]
["Выполнение функций органами местного самоуправления",923,1,6,20400,"500",1594.5]
["Руководитель контрольно-счетной палаты муниципального образования и его заместители",923,1,6,22500,0,1082.4000000000001]
["Выполнение функций органами местного самоуправления",923,1,6,22500,"500",1082.4000000000001]
["ОБРАЗОВАНИЕ",923,7,0,0,0,2]
["Профессиональная подготовка, переподготовка и повышение квалификации",923,7,5,0,0,2]
["Мероприятия по переподготовке и повышению квалификации",923,7,5,4340000,0,2]
["Выполнение функций органами местного самоуправления",923,7,5,4340000,"500",2]
["ИТОГО",{"$nulls":5},499672]
[]
[]
["Начальник финансового управления",{"$nulls":4},"Ю.Н. Гайдук"]

{"sheet":"прил12","index":5,"n_rows":57,"n_cols":10,"rows_kept":57,"cut":false,"hidden":false,"merged":[[7,0,7,7],[8,6,8,7],[9,0,10,0],[9,1,10,1],[9,2,10,2],[9,3,9,6],[9,7,10,7],[53,0,53,1],[53,2,53,6],[13,2,17,2],[19,2,28,2],[29,0,30,0],[29,1,30,1],[31,1,52,1],[31,0,52,0]]}
{"$rows_empty":7}
["Распределение бюджетных ассигнований на реализацию долгосрочных районных целевых программ Черемховского районного муниципального образования на 2013 год"]
[{"$nulls":6},"(тыс. рублей)"]
["№ п/п","Наименование программы","Исполнители","Бюджетная классификация",null,null,null,"сумма "]
[null,null,null,"ГРБС","РзПр","ЦСР","ВР"]
[1,2,3,4,5,6,7,8]
[1,"Развитие культуры в Черемховском районном муниципальном образовании на период 2012-2016 гг.","Отдел по культуре и библиотечному обслуживанию АЧРМО",904,"0801, 0702",7952000,"023",1023.8]
[2,"Ветхие школы Черемховского района на 2011-2013 гг.","Отдел образования АЧРМО",907,"0702",7951500,"022",900]
[3,"Совершенствование дошкольного образования Черемховского района на 2011-2014 гг.",null,907,"0701",7951800,"022",350]
[4,"Совершенствование организации питания в образовательных учреждениях Черемховского района на 2011-2013 гг.",null,907,"0702",7951600,"022",1000]
[5,"Развитие дошкольного образования на 2011-2014 гг.",null,907,"0701",7951700,"022",1102]
[6,"\"Безопасность образовательных учреждений\" 2010-2014гг.",null,907,"0701, 0702",7951000,"450",1700,null," "]
[7,"Инвентаризация муниципальных объектов недвижимости Черемховского районного муниципального образования на 2012-2014 годы","КУМИ",913,"0113, 0412, 0409",7951900,"500",1468.6]
[8,"Молодым семьям доступное жилье на 2012-2019гг.","Администрация ЧРМО ",917,1003,7952100,"005",360]
[9,"Комплексные меры профилактики злоупотребления наркотическими средствами, психотропними веществами в Черемховском районном муниципальном образовании на 2011-2013 гг.",null,917,"0707",7951300,500,10]
[10,"Молодежная политика в Черемховском районном муниципальном образовании на 2013-2015 ",null,917,"0707",7952500,447,40]
[11,"Развитие физической культуры, спорта и туризма в Черемховском районном муниципальном образовании на 2011-2013гг.",null,917,"1101",7951200,500,100]
[12,"Поддержка и развитие малого и среднего предпринимательства в Черемховском районе на 2013-2014 гг.",null,917,"0412",7952200,500,100]
[13,"Поддержка, проводимых мероприятий, посвященных Дням воинской славы, памятным датам России и работе с ветеранами и инвалидами в Черемховском районе на 2013-2015 гг.",null,917,"1006",7952400,500,100]
[14,"Улучшение условий и охраны труда в Черемховском районе на 2011-2013 гг",null,917,"0113",7951400,500,15]
[15,"Развитие автомобильных дорог Черемховского районного муниципального образования на 2013-2015 гг.",null,917,"0409",7952300,500,202.5]
[16,"Поддержка молодых педагогов на территории Черемховского районного муниципального образования на 2012-2013 гг.",null,917,"0113",7952700,500,100]
[17,"Профилактика правонарушений в Черемховском районном муниципальном образовании на 2013-2016 гг.",null,917,"0113",7952600,500,40]
[18,"Программа повышения энергетической эффективности Черемховского районного муниципального образования на 2010-2015 гг","Отдел образования АЧРМО",907,"0702",7951100,"451",600]
[null,null,"Отдел по культуре и библиотечному обслуживанию АЧРМО",904,"0801",7951100,"451",282]
[19,"Повышение эффективности бюджетных расходов Черемховского районного муниципального образования на 2012-2013 годы","Финансовое управление АЧРМО",910,"0106",7950200,"500",200]
[null,null,"Отдел образования АЧРМО",907,"0701, 0702",7950200,"001",7305.9]
[null,null,"Отдел по культуре и библиотечному обслуживанию АЧРМО",904,"0702, 0801",7950200,"001",483]
[null,null,"Муниципальные образования района, Всего, в том числе",{"$nulls":4},1875]
[null,null,"Алехинское сельское поселение",910,"1403",7950200,"017",187]
[null,null,"Бельское сельское поселение",910,"1403",7950200,"017",91]
[null,null,"Булайское сельское поселение",910,"1403",7950200,"017",143]
[null,null,"Голуметское сельское поселение",910,"1403",7950200,"017",97]
[null,null,"Зерновское сельское поселение",910,"1403",7950200,"017",116]
[null,null,"Каменно-Ангарское сельское поселение",910,"1403",7950200,"017",99]
[null,null,"Лоховское сельское поселение",910,"1403",7950200,"017",65]
[null,null,"Михайловское городское поселение",910,"1403",7950200,"017",142]
[null,null,"Нижнеиретское сельское поселение",910,"1403",7950200,"017",84]
[null,null,"Новогромовское сельское поселение",910,"1403",7950200,"017",78]
[null,null,"Новостроевское сельское поселение",910,"1403",7950200,"017",84]
[null,null,"Онотское сельское поселение",910,"1403",7950200,"017",104]
[null,null,"Парфеновское сельское поселение",910,"1403",7950200,"017",97]
[null,null,"Саянское сельское поселение",910,"1403",7950200,"017",107]
[null,null,"Тальниковское сельское поселение",910,"1403",7950200,"017",87]
[null,null,"Тунгусское сельское поселение",910,"1403",7950200,"017",102]
[null,null,"Узколугское сельское поселение",910,"1403",7950200,"017",93]
[null,null,"Черемховское сельское поселение",910,"1403",7950200,"017",99]
["Всего",{"$nulls":6},{"$f":"SUM(H13:H35)","v":19357.8}]
[]
[]
["Начальник финансового управления",{"$nulls":6},"Ю.Н. Гайдук"]

{"sheet":"прил 16заим 2013","index":6,"n_rows":16,"n_cols":5,"rows_kept":16,"cut":false,"hidden":false,"merged":[[6,0,6,4]]}
[]
[]
[]
[]
[]
[]
["Программа муниципальных внутренних заимствований Черемховского районного муниципального образования на 2013 год"]
[{"$nulls":4},"(тыс.рублей)"]
["Виды долговых обязательств (привлечение/погашение)","Объем муниципального долга на 1 января 2013 года","Объем привлечения в 2013 году","Объем погашения в 2013 году","Верхний предел муниципального долга на 1 января 2014 года "]
["Объем заимствований, всего",0,{"$f":"C12+C13","v":4061.4479500000002},0,{"$f":"E12+E13","v":4061.4479500000002}]
["в том числе:"]
["2. Кредиты кредитных организаций в валюте Российской Федерации сроком до 3-х лет",0,4061.4479500000002,0,{"$f":"B12+C12-D12","v":4061.4479500000002}]
["3. Бюджетные кредиты от других бюджетов бюджетной системы Российской Федерации ",0,0,0,0]
[]
[]
["Начальник финансового управления",null,null,null,"Ю.Н. Гайдук"]

{"sheet":"прил17заим2014-2015","index":7,"n_rows":17,"n_cols":8,"rows_kept":17,"cut":false,"hidden":false,"merged":[[7,0,7,7]]}
{"$rows_empty":7}
["Программа муниципальных внутренних заимствований Черемховского районного муниципального образования на  плановый период 2014 и 2015 годов"]
[{"$nulls":7},"(тыс.рублей)"]
["Виды долговых обязательств (привлечение/погашение)","Объем муниципального долга на 1 января 2014 года","Объем привлечения в 2014 году","Объем погашения в 2014 году","Верхний предел муниципального долга на 1 января 2015 года ","Объем привлечения в 2015 году","Объем погашения в 2015 году","Верхний предел муниципального долга на 1 января 2016 года "]
["Объем заимствований, всего",{"$f":"B13+B14","v":4061.4},4153.8999999999996,0,8215.2999999999993,4315.2,0,12530.5]
["в том числе:"]
["2. Кредиты кредитных организаций в валюте Российской Федерации сроком до 3-х лет",4061.4,4153.8999999999996,0,{"$f":"B13+C13","v":8215.2999999999993},4315.2,0,{"$f":"E13+F13-G13","v":12530.5}]
["3. Бюджетные кредиты от других бюджетов бюджетной системы Российской Федерации ",0,0,0,0,0,0,0]
[]
[]
["Начальник финансового управления",{"$nulls":6},"Ю.Н. Гайдук"]

{"sheet":"прил18источн2013","index":8,"n_rows":25,"n_cols":3,"rows_kept":25,"cut":false,"hidden":false,"merged":[[7,0,7,2]]}
{"$rows_empty":7}
["Источники внутреннего финансирования дефицита бюджета Черемховского районного муниципального образования на 2013 год"]
[]
[null,null,"(тыс.рублей)"]
["Наименование","Код","Сумма"]
["Источники внутреннего финансирования дефицита бюджета","000 01 00 00 00 00 0000 000",{"$f":"C13+C19","v":19503.168850000016}]
["Кредиты кредитных организаций в валюте Российской Федерации","810 01 02 00 00 00 0000 000",{"$f":"C14","v":4061.4479500000002}]
["Получение кредитов от кредитных организаций в валюте Российской Федерации","810 01 02 00 00 00 0000 700",{"$f":"C15","v":4061.4479500000002}]
["Кредиты, полученные в валюте Российской Федерации от кредитных организаций бюджетами муниципальных районнов","810 01 02 00 00 05 0000 710",4061.4479500000002]
["Бюджетные кредиты от других бюджетов бюджетной системы Российской Федерации ","810 01 03 00 00 00 0000 000",0]
["Погашение бюджетных кредитов, полученных от других бюджетов бюджетной системы Российской Федерации в валюте Российской Федерации","810 01 03 00 00 00 0000 800",0]
["Погашение бюджетами муниципальных районнов кредитов от других бюджетов бюджетной системы Российской Федерации в валюте Российской Федерации","810 01 03 00 00 05 0000 810",0]
["Изменение остатков средств на счетах по учету средств бюджетов","000 01 05 00 00 00 0000 000",{"$f":"C20+C22","v":15441.720900000015}]
["Увеличение остатков средств бюджетов","000 01 05 00 00 00 0000 500",{"$f":"C21","v":-484230.27909999999}]
["Увеличение прочих остатков  средств бюджетов","000 01 05 02 00 00 0000 500",{"$f":"-480168.83115-4061.44795","v":-484230.27909999999}]
["Уменьшение остатков средств бюджетов","000 01 05 00 00 00 0000 600",{"$f":"C23","v":499672}]
["Уменьшение прочих остатков средств бюджетов","000 01 05 02 00 00 0000 600",{"$f":"499672","v":499672}]
[]
["Начальник финансового управления",null,"Ю.Н. Гайдук"]